Workbook

Sheet СВОД
A1: Форма мониторинга физической подготовленности обучающихся в сфере образования Российской Федерации
A2: № строки | B2: Класс | C2: Всего обучающихся в общеобразовательных организациях | D2: Из них с основной группой здоровья | F2: Количество сдавших тест (от общей численности обучающихся с основной группой здоровья) | H2: Уровень физической подготовленности (количество сдавших тесты с основной группой здоровья) | N2: Проверка данных
D5: Кол-во | E5: % (от общей численности обучающихся) | F5: Кол-во | G5: % | H5: Низкий | J5: Средний | L5: Высокий
H8: Кол-во | I8: % | J8: Кол-во | K8: % | L8: Кол-во | M8: %
B9: 1 | C9: 2 | D9: 3 | E9: 4 | F9: 5 | G9: 6 | H9: 7 | I9: 8 | J9: 9 | K9: 10 | L9: 11 | M9: 12 | N9: 13
A10: 1 | B10: 1 | C10: =SUM(НАЧАЛО:КОНЕЦ!C10) -> 670 | D10: =SUM(НАЧАЛО:КОНЕЦ!D10) -> 611 | E10: =D10/C10 -> 91.19% | F10: =SUM(H10+J10+L10) -> 611 | G10: =F10/D10 -> 100.00% | H10: =SUM(НАЧАЛО:КОНЕЦ!H10) -> 142 | I10: =H10/F10 -> 23.24% | J10: =SUM(НАЧАЛО:КОНЕЦ!J10) -> 296 | K10: =J10/F10 -> 48.45% | L10: =SUM(НАЧАЛО:КОНЕЦ!L10) -> 173 | M10: =L10/F10 -> 28.31% | N10: =IF((H10+J10+L10)>D10,"ОШИБКА","") -> 
A11: 2 | B11: 2 | C11: =SUM(НАЧАЛО:КОНЕЦ!C11) -> 589 | D11: =SUM(НАЧАЛО:КОНЕЦ!D11) -> 520 | E11: =D11/C11 -> 88.29% | F11: =SUM(H11+J11+L11) -> 519 | G11: =F11/D11 -> 99.81% | H11: =SUM(НАЧАЛО:КОНЕЦ!H11) -> 86 | I11: =H11/F11 -> 16.57% | J11: =SUM(НАЧАЛО:КОНЕЦ!J11) -> 275 | K11: =J11/F11 -> 52.99% | L11: =SUM(НАЧАЛО:КОНЕЦ!L11) -> 158 | M11: =L11/F11 -> 30.44% | N11: =IF((H11+J11+L11)>D11,"ОШИБКА","") -> 
A12: 3 | B12: 3 | C12: =SUM(НАЧАЛО:КОНЕЦ!C12) -> 587 | D12: =SUM(НАЧАЛО:КОНЕЦ!D12) -> 518 | E12: 88.25% | F12: 518 | G12: 100.00% | H12: =SUM(НАЧАЛО:КОНЕЦ!H12) -> 74 | I12: 14.29% | J12: =SUM(НАЧАЛО:КОНЕЦ!J12) -> 266 | K12: 51.35% | L12: =SUM(НАЧАЛО:КОНЕЦ!L12) -> 178 | M12: 34.36%
A13: 4 | B13: 4 | C13: =SUM(НАЧАЛО:КОНЕЦ!C13) -> 554 | D13: =SUM(НАЧАЛО:КОНЕЦ!D13) -> 488 | E13: 88.09% | F13: 486 | G13: 99.59% | H13: =SUM(НАЧАЛО:КОНЕЦ!H13) -> 84 | I13: 17.28% | J13: =SUM(НАЧАЛО:КОНЕЦ!J13) -> 264 | K13: 54.32% | L13: =SUM(НАЧАЛО:КОНЕЦ!L13) -> 138 | M13: 28.40%
A14: 5 | B14: 5 | C14: =SUM(НАЧАЛО:КОНЕЦ!C14) -> 504 | D14: =SUM(НАЧАЛО:КОНЕЦ!D14) -> 466 | E14: 92.46% | F14: 465 | G14: 99.79% | H14: =SUM(НАЧАЛО:КОНЕЦ!H14) -> 139 | I14: 29.89% | J14: =SUM(НАЧАЛО:КОНЕЦ!J14) -> 228 | K14: 49.03% | L14: =SUM(НАЧАЛО:КОНЕЦ!L14) -> 98 | M14: 21.08%
A15: 6 | B15: 6 | C15: =SUM(НАЧАЛО:КОНЕЦ!C15) -> 476 | D15: =SUM(НАЧАЛО:КОНЕЦ!D15) -> 428 | E15: 89.92% | F15: 426 | G15: 99.53% | H15: =SUM(НАЧАЛО:КОНЕЦ!H15) -> 71 | I15: 16.67% | J15: =SUM(НАЧАЛО:КОНЕЦ!J15) -> 254 | K15: 59.62% | L15: =SUM(НАЧАЛО:КОНЕЦ!L15) -> 101 | M15: 23.71%
A16: 7 | B16: 7 | C16: =SUM(НАЧАЛО:КОНЕЦ!C16) -> 467 | D16: =SUM(НАЧАЛО:КОНЕЦ!D16) -> 413 | E16: 88.44% | F16: 410 | G16: 99.27% | H16: =SUM(НАЧАЛО:КОНЕЦ!H16) -> 72 | I16: 17.56% | J16: =SUM(НАЧАЛО:КОНЕЦ!J16) -> 206 | K16: 50.24% | L16: =SUM(НАЧАЛО:КОНЕЦ!L16) -> 132 | M16: 32.20%
A17: 8 | B17: 8 | C17: =SUM(НАЧАЛО:КОНЕЦ!C17) -> 426 | D17: =SUM(НАЧАЛО:КОНЕЦ!D17) -> 369 | E17: 86.62% | F17: 368 | G17: 99.73% | H17: =SUM(НАЧАЛО:КОНЕЦ!H17) -> 62 | I17: 16.85% | J17: =SUM(НАЧАЛО:КОНЕЦ!J17) -> 204 | K17: 55.43% | L17: =SUM(НАЧАЛО:КОНЕЦ!L17) -> 102 | M17: 27.72%
A18: 9 | B18: 9 | C18: =SUM(НАЧАЛО:КОНЕЦ!C18) -> 534 | D18: =SUM(НАЧАЛО:КОНЕЦ!D18) -> 481 | E18: 90.07% | F18: 480 | G18: 99.79% | H18: =SUM(НАЧАЛО:КОНЕЦ!H18) -> 87 | I18: 18.13% | J18: =SUM(НАЧАЛО:КОНЕЦ!J18) -> 261 | K18: 54.38% | L18: =SUM(НАЧАЛО:КОНЕЦ!L18) -> 132 | M18: 27.50%
A19: 10 | B19: 10 | C19: =SUM(НАЧАЛО:КОНЕЦ!C19) -> 166 | D19: =SUM(НАЧАЛО:КОНЕЦ!D19) -> 151 | E19: 90.96% | F19: 150 | G19: 99.34% | H19: =SUM(НАЧАЛО:КОНЕЦ!H19) -> 26 | I19: 17.33% | J19: =SUM(НАЧАЛО:КОНЕЦ!J19) -> 71 | K19: 47.33% | L19: =SUM(НАЧАЛО:КОНЕЦ!L19) -> 53 | M19: 35.33%
A20: 11 | B20: 11 | C20: =SUM(НАЧАЛО:КОНЕЦ!C20) -> 157 | D20: =SUM(НАЧАЛО:КОНЕЦ!D20) -> 145 | E20: 92.36% | F20: 142 | G20: 97.93% | H20: =SUM(НАЧАЛО:КОНЕЦ!H20) -> 27 | I20: 19.01% | J20: =SUM(НАЧАЛО:КОНЕЦ!J20) -> 57 | K20: 40.14% | L20: =SUM(НАЧАЛО:КОНЕЦ!L20) -> 58 | M20: 40.85%
A21: Всего | C21: =SUM(C10:C20) -> 5130 | D21: =SUM(D10:D20) -> 4590 | E21: 89.47% | F21: =SUM(F10:F20) -> 4575 | G21: 99.67% | H21: =SUM(H10:H20) -> 870.00 | I21: 19.02% | J21: =SUM(J10:J20) -> 2382 | K21: 52.07% | L21: =SUM(L10:L20) -> 1323 | M21: 28.92%

Sheet НАЧАЛО

Sheet 1 шк
A1: Форма мониторинга физической подготовленности обучающихся в сфере образования Российской Федерации
A2: № строки | B2: Класс | C2: Всего обучающихся в общеобразовательной организации | D2: Из них с основной группой здоровья | F2: Количество сдавших тест (от общей численности обучающихся с основной группой здоровья) | H2: Уровень физической подготовленности (количество сдавших тесты с основной группой здоровья) | N2: Проверка данных
D5: Кол-во | E5: % (от общей численности обучающихся) | F5: Кол-во | G5: % | H5: Низкий | J5: Средний | L5: Высокий
H8: Кол-во | I8: % | J8: Кол-во | K8: % | L8: Кол-во | M8: %
B9: 1 | C9: 2 | D9: 3 | E9: 4 | F9: 5 | G9: 6 | H9: 7 | I9: 8 | J9: 9 | K9: 10 | L9: 11 | M9: 12 | N9: 13
A10: 1 | B10: 1 | C10: 48 | D10: 39 | E10: =D10/C10 -> 81.25% | F10: =SUM(H10+J10+L10) -> 39 | G10: =F10/D10 -> 100.00% | H10: ='[1]1 класс'!J2 -> 11 | I10: =H10/F10 -> 28.21% | J10: ='[1]1 класс'!K2 -> 26 | K10: =J10/F10 -> 66.67% | L10: ='[1]1 класс'!L2 -> 2 | M10: =L10/F10 -> 5.13% | N10: =IF((H10+J10+L10)>D10,"ОШИБКА","") -> 
A11: 2 | B11: 2 | C11: 41 | D11: 28 | E11: =D11/C11 -> 68.29% | F11: =SUM(H11+J11+L11) -> 28 | G11: =F11/D11 -> 100.00% | H11: ='[1]2 класс'!J2 -> 6 | I11: =H11/F11 -> 21.43% | J11: ='[1]2 класс'!K2 -> 18 | K11: =J11/F11 -> 64.29% | L11: ='[1]2 класс'!L2 -> 4 | M11: =L11/F11 -> 14.29% | N11: =IF((H11+J11+L11)>D11,"ОШИБКА","") -> 
A12: 3 | B12: 3 | C12: 34 | D12: 34 | E12: 100.00% | F12: 34 | G12: 100.00% | H12: ='[1]3 класс'!J2 -> 4 | I12: 11.76% | J12: ='[1]3 класс'!K2 -> 24 | K12: 70.59% | L12: ='[1]3 класс'!L2 -> 6 | M12: 17.65%
A13: 4 | B13: 4 | C13: 42 | D13: 40 | E13: 95.24% | F13: 40 | G13: 100.00% | H13: ='[1]4 класс'!K2 -> 3 | I13: 7.50% | J13: ='[1]4 класс'!L2 -> 26 | K13: 65.00% | L13: ='[1]4 класс'!M2 -> 11 | M13: 27.50%
A14: 5 | B14: 5 | C14: 40 | D14: 31 | E14: 77.50% | F14: 31 | G14: 100.00% | H14: ='[1]5 класс'!L2 -> 1 | I14: 3.23% | J14: ='[1]5 класс'!M2 -> 25 | K14: 80.65% | L14: ='[1]5 класс'!N2 -> 5 | M14: 16.13%
A15: 6 | B15: 6 | C15: 41 | D15: 38 | E15: 92.68% | F15: 38 | G15: 100.00% | H15: ='[1]6 класс'!L2 -> 4 | I15: 10.53% | J15: ='[1]6 класс'!M2 -> 28 | K15: 73.68% | L15: ='[1]6 класс'!N2 -> 6 | M15: 15.79%
A16: 7 | B16: 7 | C16: 31 | D16: 27 | E16: 87.10% | F16: 27 | G16: 100.00% | H16: ='[1]7 класс'!L2 -> 1 | I16: 3.70% | J16: ='[1]7 класс'!M2 -> 19 | K16: 70.37% | L16: ='[1]7 класс'!N2 -> 7 | M16: 25.93%
A17: 8 | B17: 8 | C17: 33 | D17: 15 | E17: 45.45% | F17: 15 | G17: 100.00% | H17: ='[1]8 класс'!L2 -> 1 | I17: 6.67% | J17: ='[1]8 класс'!M2 -> 11 | K17: 73.33% | L17: ='[1]8 класс'!N2 -> 3 | M17: 20.00%
A18: 9 | B18: 9 | C18: 41 | D18: 35 | E18: 85.37% | F18: 35 | G18: 100.00% | H18: ='[1]9 класс'!L2 -> 6 | I18: 17.14% | J18: ='[1]9 класс'!M2 -> 22 | K18: 62.86% | L18: ='[1]9 класс'!N2 -> 7 | M18: 20.00%
A19: 10 | B19: 10 | F19: 0 | H19: ='[1]10 класс'!L2 -> 0 | J19: ='[1]10 класс'!M2 -> 0 | L19: ='[1]10 класс'!N2 -> 0
A20: 11 | B20: 11 | F20: 0 | H20: ='[1]11 класс'!L2 -> 0 | J20: ='[1]11 класс'!M2 -> 0 | L20: ='[1]11 класс'!N2 -> 0
A21: Всего | C21: =SUM(C10:C20) -> 351 | D21: =SUM(D10:D20) -> 287 | E21: 81.77% | F21: =SUM(F10:F20) -> 287 | G21: 100.00% | H21: =SUM(H10:H20) -> 37 | I21: 12.89% | J21: =SUM(J10:J20) -> 199 | K21: 69.34% | L21: =SUM(L10:L20) -> 51 | M21: 17.77%

Sheet 2 шк
A1: Форма мониторинга физической подготовленности обучающихся в сфере образования Российской Федерации
A2: № строки | B2: Класс | C2: Всего обучающихся в общеобразовательной организации | D2: Из них с основной группой здоровья | F2: Количество сдавших тест (от общей численности обучающихся с основной группой здоровья) | H2: Уровень физической подготовленности (количество сдавших тесты с основной группой здоровья) | N2: Проверка данных
D5: Кол-во | E5: % (от общей численности обучающихся) | F5: Кол-во | G5: % | H5: Низкий | J5: Средний | L5: Высокий
H8: Кол-во | I8: % | J8: Кол-во | K8: % | L8: Кол-во | M8: %
B9: 1 | C9: 2 | D9: 3 | E9: 4 | F9: 5 | G9: 6 | H9: 7 | I9: 8 | J9: 9 | K9: 10 | L9: 11 | M9: 12 | N9: 13
A10: 1 | B10: 1 | C10: 81 | D10: 60 | E10: =D10/C10 -> 74.07% | F10: =SUM(H10+J10+L10) -> 60 | G10: =F10/D10 -> 100.00% | H10: ='[2]1 класс'!J2 -> 30 | I10: =H10/F10 -> 50.00% | J10: ='[2]1 класс'!K2 -> 23 | K10: =J10/F10 -> 38.33% | L10: ='[2]1 класс'!L2 -> 7 | M10: =L10/F10 -> 11.67% | N10: =IF((H10+J10+L10)>D10,"ОШИБКА","") -> 
A11: 2 | B11: 2 | C11: 57 | D11: 49 | E11: =D11/C11 -> 85.96% | F11: =SUM(H11+J11+L11) -> 49 | G11: =F11/D11 -> 100.00% | H11: ='[2]2 класс'!J2 -> 19 | I11: =H11/F11 -> 38.78% | J11: ='[2]2 класс'!K2 -> 22 | K11: =J11/F11 -> 44.90% | L11: ='[2]2 класс'!L2 -> 8 | M11: =L11/F11 -> 16.33% | N11: =IF((H11+J11+L11)>D11,"ОШИБКА","") -> 
A12: 3 | B12: 3 | C12: 75 | D12: 63 | E12: 84.00% | F12: 63 | G12: 100.00% | H12: ='[2]3 класс'!J2 -> 20 | I12: 31.75% | J12: ='[2]3 класс'!K2 -> 35 | K12: 55.56% | L12: ='[2]3 класс'!L2 -> 8 | M12: 12.70%
A13: 4 | B13: 4 | C13: 49 | D13: 47 | E13: 95.92% | F13: 47 | G13: 100.00% | H13: ='[2]4 класс'!K2 -> 13 | I13: 27.66% | J13: ='[2]4 класс'!L2 -> 28 | K13: 59.57% | L13: ='[2]4 класс'!M2 -> 6 | M13: 12.77%
A14: 5 | B14: 5 | C14: 49 | D14: 43 | E14: 87.76% | F14: 43 | G14: 100.00% | H14: ='[2]5 класс'!L2 -> 12 | I14: 27.91% | J14: ='[2]5 класс'!M2 -> 18 | K14: 41.86% | L14: ='[2]5 класс'!N2 -> 13 | M14: 30.23%
A15: 6 | B15: 6 | C15: 41 | D15: 39 | E15: 95.12% | F15: 39 | G15: 100.00% | H15: ='[2]6 класс'!L2 -> 13 | I15: 33.33% | J15: ='[2]6 класс'!M2 -> 17 | K15: 43.59% | L15: ='[2]6 класс'!N2 -> 9 | M15: 23.08%
A16: 7 | B16: 7 | C16: 47 | D16: 41 | E16: 87.23% | F16: 41 | G16: 100.00% | H16: ='[2]7 класс'!L2 -> 17 | I16: 41.46% | J16: ='[2]7 класс'!M2 -> 16 | K16: 39.02% | L16: ='[2]7 класс'!N2 -> 8 | M16: 19.51%
A17: 8 | B17: 8 | C17: 25 | D17: 22 | E17: 88.00% | F17: 22 | G17: 100.00% | H17: ='[2]8 класс'!L2 -> 8 | I17: 36.36% | J17: ='[2]8 класс'!M2 -> 8 | K17: 36.36% | L17: ='[2]8 класс'!N2 -> 6 | M17: 27.27%
A18: 9 | B18: 9 | C18: 54 | D18: 47 | E18: 87.04% | F18: 47 | G18: 100.00% | H18: ='[2]9 класс'!L2 -> 9 | I18: 19.15% | J18: ='[2]9 класс'!M2 -> 23 | K18: 48.94% | L18: ='[2]9 класс'!N2 -> 15 | M18: 31.91%
A19: 10 | B19: 10 | C19: 26 | D19: 20 | E19: 76.92% | F19: 20 | G19: 100.00% | H19: ='[2]10 класс'!L2 -> 5 | I19: 25.00% | J19: ='[2]10 класс'!M2 -> 8 | K19: 40.00% | L19: ='[2]10 класс'!N2 -> 7 | M19: 35.00%
A20: 11 | B20: 11 | C20: 18 | D20: 17 | E20: 94.44% | F20: 17 | G20: 100.00% | H20: ='[2]11 класс'!L2 -> 4 | I20: 23.53% | J20: ='[2]11 класс'!M2 -> 6 | K20: 35.29% | L20: ='[2]11 класс'!N2 -> 7 | M20: 41.18%
A21: Всего | C21: =SUM(C10:C20) -> 522 | D21: =SUM(D10:D20) -> 448 | E21: 85.82% | F21: =SUM(F10:F20) -> 448 | G21: 100.00% | H21: =SUM(H10:H20) -> 150 | I21: 33.48% | J21: =SUM(J10:J20) -> 204 | K21: 45.54% | L21: =SUM(L10:L20) -> 94 | M21: 20.98%

Sheet 3 шк
A1: Форма мониторинга физической подготовленности обучающихся в сфере образования Российской Федерации
A2: № строки | B2: Класс | C2: Всего обучающихся в общеобразовательной организации | D2: Из них с основной группой здоровья | F2: Количество сдавших тест (от общей численности обучающихся с основной группой здоровья) | H2: Уровень физической подготовленности (количество сдавших тесты с основной группой здоровья) | N2: Проверка данных
D5: Кол-во | E5: % (от общей численности обучающихся) | F5: Кол-во | G5: % | H5: Низкий | J5: Средний | L5: Высокий
H8: Кол-во | I8: % | J8: Кол-во | K8: % | L8: Кол-во | M8: %
B9: 1 | C9: 2 | D9: 3 | E9: 4 | F9: 5 | G9: 6 | H9: 7 | I9: 8 | J9: 9 | K9: 10 | L9: 11 | M9: 12 | N9: 13
A10: 1 | B10: 1 | C10: 63 | D10: 58 | E10: =D10/C10 -> 92.06% | F10: =SUM(H10+J10+L10) -> 58 | G10: =F10/D10 -> 100.00% | H10: ='[16]1 класс'!J2 -> 5 | I10: =H10/F10 -> 8.62% | J10: ='[16]1 класс'!K2 -> 35 | K10: =J10/F10 -> 60.34% | L10: ='[16]1 класс'!L2 -> 18 | M10: =L10/F10 -> 31.03% | N10: =IF((H10+J10+L10)>D10,"ОШИБКА","") -> 
A11: 2 | B11: 2 | C11: 45 | D11: 39 | E11: =D11/C11 -> 86.67% | F11: =SUM(H11+J11+L11) -> 39 | G11: =F11/D11 -> 100.00% | H11: ='[16]2 класс'!J2 -> 3 | I11: =H11/F11 -> 7.69% | J11: ='[16]2 класс'!K2 -> 24 | K11: =J11/F11 -> 61.54% | L11: ='[16]2 класс'!L2 -> 12 | M11: =L11/F11 -> 30.77% | N11: =IF((H11+J11+L11)>D11,"ОШИБКА","") -> 
A12: 3 | B12: 3 | C12: 54 | D12: 47 | E12: 87.04% | F12: 47 | G12: 100.00% | H12: ='[16]3 класс'!J2 -> 3 | I12: 6.38% | J12: ='[16]3 класс'!K2 -> 22 | K12: 46.81% | L12: ='[16]3 класс'!L2 -> 22 | M12: 46.81%
A13: 4 | B13: 4 | C13: 54 | D13: 49 | E13: 90.74% | F13: 49 | G13: 100.00% | H13: ='[16]4 класс'!K2 -> 13 | I13: 26.53% | J13: ='[16]4 класс'!L2 -> 25 | K13: 51.02% | L13: ='[16]4 класс'!M2 -> 11 | M13: 22.45%
A14: 5 | B14: 5 | C14: 51 | D14: 51 | E14: 100.00% | F14: 51 | G14: 100.00% | H14: ='[16]5 класс'!L2 -> 9 | I14: 17.65% | J14: ='[16]5 класс'!M2 -> 26 | K14: 50.98% | L14: ='[16]5 класс'!N2 -> 16 | M14: 31.37%
A15: 6 | B15: 6 | C15: 33 | D15: 33 | E15: 100.00% | F15: 33 | G15: 100.00% | H15: ='[16]6 класс'!L2 -> 4 | I15: 12.12% | J15: ='[16]6 класс'!M2 -> 16 | K15: 48.48% | L15: ='[16]6 класс'!N2 -> 13 | M15: 39.39%
A16: 7 | B16: 7 | C16: 43 | D16: 39 | E16: 90.70% | F16: 39 | G16: 100.00% | H16: ='[16]7 класс'!L2 -> 12 | I16: 30.77% | J16: ='[16]7 класс'!M2 -> 20 | K16: 51.28% | L16: ='[16]7 класс'!N2 -> 7 | M16: 17.95%
A17: 8 | B17: 8 | C17: 45 | D17: 42 | E17: 93.33% | F17: 42 | G17: 100.00% | H17: ='[16]8 класс'!L2 -> 19 | I17: 45.24% | J17: ='[16]8 класс'!M2 -> 14 | K17: 33.33% | L17: ='[16]8 класс'!N2 -> 9 | M17: 21.43%
A18: 9 | B18: 9 | C18: 27 | D18: 26 | E18: 96.30% | F18: 26 | G18: 100.00% | H18: ='[16]9 класс'!L2 -> 10 | I18: 38.46% | J18: ='[16]9 класс'!M2 -> 8 | K18: 30.77% | L18: ='[16]9 класс'!N2 -> 8 | M18: 30.77%
A19: 10 | B19: 10 | C19: 19 | D19: 18 | E19: 94.74% | F19: 18 | G19: 100.00% | H19: ='[16]10 класс'!L2 -> 6 | I19: 33.33% | J19: ='[16]10 класс'!M2 -> 9 | K19: 50.00% | L19: ='[16]10 класс'!N2 -> 3 | M19: 16.67%
A20: 11 | B20: 11 | C20: 15 | D20: 15 | E20: 100.00% | F20: 15 | G20: 100.00% | H20: ='[16]11 класс'!L2 -> 6 | I20: 40.00% | J20: ='[16]11 класс'!M2 -> 7 | K20: 46.67% | L20: ='[16]11 класс'!N2 -> 2 | M20: 13.33%
A21: Всего | C21: =SUM(C10:C20) -> 449 | D21: =SUM(D10:D20) -> 417 | E21: 92.87% | F21: =SUM(F10:F20) -> 417 | G21: 100.00% | H21: =SUM(H10:H20) -> 90 | I21: 21.58% | J21: =SUM(J10:J20) -> 206 | K21: 49.40% | L21: =SUM(L10:L20) -> 121 | M21: 29.02%

Sheet 4 шк
A1: Форма мониторинга физической подготовленности обучающихся в сфере образования Российской Федерации
A2: № строки | B2: Класс | C2: Всего обучающихся в общеобразовательной организации | D2: Из них с основной группой здоровья | F2: Количество сдавших тест (от общей численности обучающихся с основной группой здоровья) | H2: Уровень физической подготовленности (количество сдавших тесты с основной группой здоровья) | N2: Проверка данных
D5: Кол-во | E5: % (от общей численности обучающихся) | F5: Кол-во | G5: % | H5: Низкий | J5: Средний | L5: Высокий
H8: Кол-во | I8: % | J8: Кол-во | K8: % | L8: Кол-во | M8: %
B9: 1 | C9: 2 | D9: 3 | E9: 4 | F9: 5 | G9: 6 | H9: 7 | I9: 8 | J9: 9 | K9: 10 | L9: 11 | M9: 12 | N9: 13
A10: 1 | B10: 1 | C10: 78 | D10: 75 | E10: =D10/C10 -> 96.15% | F10: =SUM(H10+J10+L10) -> 75 | G10: =F10/D10 -> 100.00% | H10: ='[17]1 класс'!J2 -> 11 | I10: =H10/F10 -> 14.67% | J10: ='[17]1 класс'!K2 -> 44 | K10: =J10/F10 -> 58.67% | L10: ='[17]1 класс'!L2 -> 20 | M10: =L10/F10 -> 26.67% | N10: =IF((H10+J10+L10)>D10,"ОШИБКА","") -> 
A11: 2 | B11: 2 | C11: 59 | D11: 59 | E11: =D11/C11 -> 100.00% | F11: =SUM(H11+J11+L11) -> 58 | G11: =F11/D11 -> 98.31% | H11: ='[17]2 класс'!J2 -> 2 | I11: =H11/F11 -> 3.45% | J11: ='[17]2 класс'!K2 -> 38 | K11: =J11/F11 -> 65.52% | L11: ='[17]2 класс'!L2 -> 18 | M11: =L11/F11 -> 31.03% | N11: =IF((H11+J11+L11)>D11,"ОШИБКА","") -> 
A12: 3 | B12: 3 | C12: 80 | D12: 80 | E12: 100.00% | F12: 80 | G12: 100.00% | H12: ='[17]3 класс'!J2 -> 11 | I12: 13.75% | J12: ='[17]3 класс'!K2 -> 27 | K12: 33.75% | L12: ='[17]3 класс'!L2 -> 42 | M12: 52.50%
A13: 4 | B13: 4 | C13: 51 | D13: 51 | E13: 100.00% | F13: 49 | G13: 96.08% | H13: ='[17]4 класс'!K2 -> 1 | I13: 2.04% | J13: ='[17]4 класс'!L2 -> 23 | K13: 46.94% | L13: ='[17]4 класс'!M2 -> 25 | M13: 51.02%
A14: 5 | B14: 5 | C14: 64 | D14: 64 | E14: 100.00% | F14: 63 | G14: 98.44% | H14: ='[17]5 класс'!L2 -> 19 | I14: 30.16% | J14: ='[17]5 класс'!M2 -> 25 | K14: 39.68% | L14: ='[17]5 класс'!N2 -> 19 | M14: 30.16%
A15: 6 | B15: 6 | C15: 51 | D15: 51 | E15: 100.00% | F15: 49 | G15: 96.08% | H15: ='[17]6 класс'!L2 -> 1 | I15: 2.04% | J15: ='[17]6 класс'!M2 -> 24 | K15: 48.98% | L15: ='[17]6 класс'!N2 -> 24 | M15: 48.98%
A16: 7 | B16: 7 | C16: 70 | D16: 70 | E16: 100.00% | F16: 67 | G16: 95.71% | H16: ='[17]7 класс'!L2 -> 10 | I16: 14.93% | J16: ='[17]7 класс'!M2 -> 25 | K16: 37.31% | L16: ='[17]7 класс'!N2 -> 32 | M16: 47.76%
A17: 8 | B17: 8 | C17: 53 | D17: 53 | E17: 100.00% | F17: 51 | G17: 96.23% | H17: ='[17]8 класс'!L2 -> 7 | I17: 13.73% | J17: ='[17]8 класс'!M2 -> 31 | K17: 60.78% | L17: ='[17]8 класс'!N2 -> 13 | M17: 25.49%
A18: 9 | B18: 9 | C18: 72 | D18: 72 | E18: 100.00% | F18: 71 | G18: 98.61% | H18: ='[17]9 класс'!L2 -> 25 | I18: 35.21% | J18: ='[17]9 класс'!M2 -> 29 | K18: 40.85% | L18: ='[17]9 класс'!N2 -> 17 | M18: 23.94%
A19: 10 | B19: 10 | C19: 22 | D19: 22 | E19: 100.00% | F19: 21 | G19: 95.45% | H19: ='[17]10 класс'!L2 -> 3 | I19: 14.29% | J19: ='[17]10 класс'!M2 -> 13 | K19: 61.90% | L19: ='[17]10 класс'!N2 -> 5 | M19: 23.81%
A20: 11 | B20: 11 | C20: 39 | D20: 39 | E20: 100.00% | F20: 38 | G20: 97.44% | H20: ='[17]11 класс'!L2 -> 12 | I20: 31.58% | J20: ='[17]11 класс'!M2 -> 16 | K20: 42.11% | L20: ='[17]11 класс'!N2 -> 10 | M20: 26.32%
A21: Всего | C21: =SUM(C10:C20) -> 639 | D21: =SUM(D10:D20) -> 636 | E21: 99.53% | F21: =SUM(F10:F20) -> 622 | G21: 97.80% | H21: =SUM(H10:H20) -> 102 | I21: 16.40% | J21: =SUM(J10:J20) -> 295 | K21: 47.43% | L21: =SUM(L10:L20) -> 225 | M21: 36.17%

Sheet 5 шк
A1: Форма мониторинга физической подготовленности обучающихся в сфере образования Российской Федерации
A2: № строки | B2: Класс | C2: Всего обучающихся в общеобразовательной организации | D2: Из них с основной группой здоровья | F2: Количество сдавших тест (от общей численности обучающихся с основной группой здоровья) | H2: Уровень физической подготовленности (количество сдавших тесты с основной группой здоровья) | N2: Проверка данных
D5: Кол-во | E5: % (от общей численности обучающихся) | F5: Кол-во | G5: % | H5: Низкий | J5: Средний | L5: Высокий
H8: Кол-во | I8: % | J8: Кол-во | K8: % | L8: Кол-во | M8: %
B9: 1 | C9: 2 | D9: 3 | E9: 4 | F9: 5 | G9: 6 | H9: 7 | I9: 8 | J9: 9 | K9: 10 | L9: 11 | M9: 12 | N9: 13
A10: 1 | B10: 1 | C10: 19 | D10: 18 | E10: =D10/C10 -> 94.74% | F10: =SUM(H10+J10+L10) -> 18 | G10: =F10/D10 -> 100.00% | H10: ='[18]1 класс'!J2 -> 0 | I10: =H10/F10 -> 0.00% | J10: ='[18]1 класс'!K2 -> 8 | K10: =J10/F10 -> 44.44% | L10: ='[18]1 класс'!L2 -> 10 | M10: =L10/F10 -> 55.56% | N10: =IF((H10+J10+L10)>D10,"ОШИБКА","") -> 
A11: 2 | B11: 2 | C11: 21 | D11: 18 | E11: =D11/C11 -> 85.71% | F11: =SUM(H11+J11+L11) -> 18 | G11: =F11/D11 -> 100.00% | H11: ='[18]2 класс'!J2 -> 0 | I11: =H11/F11 -> 0.00% | J11: ='[18]2 класс'!K2 -> 12 | K11: =J11/F11 -> 66.67% | L11: ='[18]2 класс'!L2 -> 6 | M11: =L11/F11 -> 33.33% | N11: =IF((H11+J11+L11)>D11,"ОШИБКА","") -> 
A12: 3 | B12: 3 | C12: 16 | D12: 16 | E12: 100.00% | F12: 16 | G12: 100.00% | H12: ='[18]3 класс'!J2 -> 0 | I12: 0.00% | J12: ='[18]3 класс'!K2 -> 10 | K12: 62.50% | L12: ='[18]3 класс'!L2 -> 6 | M12: 37.50%
A13: 4 | B13: 4 | C13: 25 | D13: 16 | E13: 64.00% | F13: 16 | G13: 100.00% | H13: ='[18]4 класс'!K2 -> 0 | I13: 0.00% | J13: ='[18]4 класс'!L2 -> 9 | K13: 56.25% | L13: ='[18]4 класс'!M2 -> 7 | M13: 43.75%
A14: 5 | B14: 5 | C14: 14 | D14: 14 | E14: 100.00% | F14: 14 | G14: 100.00% | H14: ='[18]5 класс'!L2 -> 0 | I14: 0.00% | J14: ='[18]5 класс'!M2 -> 7 | K14: 50.00% | L14: ='[18]5 класс'!N2 -> 7 | M14: 50.00%
A15: 6 | B15: 6 | C15: 14 | D15: 12 | E15: 85.71% | F15: 12 | G15: 100.00% | H15: ='[18]6 класс'!L2 -> 0 | I15: 0.00% | J15: ='[18]6 класс'!M2 -> 6 | K15: 50.00% | L15: ='[18]6 класс'!N2 -> 6 | M15: 50.00%
A16: 7 | B16: 7 | C16: 19 | D16: 13 | E16: 68.42% | F16: 13 | G16: 100.00% | H16: ='[18]7 класс'!L2 -> 0 | I16: 0.00% | J16: ='[18]7 класс'!M2 -> 5 | K16: 38.46% | L16: ='[18]7 класс'!N2 -> 8 | M16: 61.54%
A17: 8 | B17: 8 | C17: 19 | D17: 19 | E17: 100.00% | F17: 19 | G17: 100.00% | H17: ='[18]8 класс'!L2 -> 0 | I17: 0.00% | J17: ='[18]8 класс'!M2 -> 8 | K17: 42.11% | L17: ='[18]8 класс'!N2 -> 11 | M17: 57.89%
A18: 9 | B18: 9 | C18: 18 | D18: 18 | E18: 100.00% | F18: 18 | G18: 100.00% | H18: ='[18]9 класс'!L2 -> 0 | I18: 0.00% | J18: ='[18]9 класс'!M2 -> 6 | K18: 33.33% | L18: ='[18]9 класс'!N2 -> 12 | M18: 66.67%
A19: 10 | B19: 10 | F19: 0 | H19: ='[18]10 класс'!L2 -> 0 | J19: ='[18]10 класс'!M2 -> 0 | L19: ='[18]10 класс'!N2 -> 0
A20: 11 | B20: 11 | F20: 0 | H20: ='[18]11 класс'!L2 -> 0 | J20: ='[18]11 класс'!M2 -> 0 | L20: ='[18]11 класс'!N2 -> 0
A21: Всего | C21: =SUM(C10:C20) -> 165 | D21: =SUM(D10:D20) -> 144 | E21: 87.27% | F21: =SUM(F10:F20) -> 144 | G21: 100.00% | H21: =SUM(H10:H20) -> 0 | I21: 0.00% | J21: =SUM(J10:J20) -> 71 | K21: 49.31% | L21: =SUM(L10:L20) -> 73 | M21: 50.69%

Sheet 6 шк
A1: Форма мониторинга физической подготовленности обучающихся в сфере образования Российской Федерации
A2: № строки | B2: Класс | C2: Всего обучающихся в общеобразовательной организации | D2: Из них с основной группой здоровья | F2: Количество сдавших тест (от общей численности обучающихся с основной группой здоровья) | H2: Уровень физической подготовленности (количество сдавших тесты с основной группой здоровья) | N2: Проверка данных
D5: Кол-во | E5: % (от общей численности обучающихся) | F5: Кол-во | G5: % | H5: Низкий | J5: Средний | L5: Высокий
H8: Кол-во | I8: % | J8: Кол-во | K8: % | L8: Кол-во | M8: %
B9: 1 | C9: 2 | D9: 3 | E9: 4 | F9: 5 | G9: 6 | H9: 7 | I9: 8 | J9: 9 | K9: 10 | L9: 11 | M9: 12 | N9: 13
A10: 1 | B10: 1 | C10: 174 | D10: 159 | E10: =D10/C10 -> 91.38% | F10: =SUM(H10+J10+L10) -> 159 | G10: =F10/D10 -> 100.00% | H10: ='[19]1 класс'!J2 -> 6 | I10: =H10/F10 -> 3.77% | J10: ='[19]1 класс'!K2 -> 58 | K10: =J10/F10 -> 36.48% | L10: ='[19]1 класс'!L2 -> 95 | M10: =L10/F10 -> 59.75% | N10: =IF((H10+J10+L10)>D10,"ОШИБКА","") -> 
A11: 2 | B11: 2 | C11: 141 | D11: 127 | E11: =D11/C11 -> 90.07% | F11: =SUM(H11+J11+L11) -> 127 | G11: =F11/D11 -> 100.00% | H11: ='[19]2 класс'!J2 -> 3 | I11: =H11/F11 -> 2.36% | J11: ='[19]2 класс'!K2 -> 39 | K11: =J11/F11 -> 30.71% | L11: ='[19]2 класс'!L2 -> 85 | M11: =L11/F11 -> 66.93% | N11: =IF((H11+J11+L11)>D11,"ОШИБКА","") -> 
A12: 3 | B12: 3 | C12: 126 | D12: 94 | E12: 74.60% | F12: 94 | G12: 100.00% | H12: ='[19]3 класс'!J2 -> 1 | I12: 1.06% | J12: ='[19]3 класс'!K2 -> 34 | K12: 36.17% | L12: ='[19]3 класс'!L2 -> 59 | M12: 62.77%
A13: 4 | B13: 4 | C13: 126 | D13: 112 | E13: 88.89% | F13: 112 | G13: 100.00% | H13: ='[19]4 класс'!K2 -> 10 | I13: 8.93% | J13: ='[19]4 класс'!L2 -> 59 | K13: 52.68% | L13: ='[19]4 класс'!M2 -> 43 | M13: 38.39%
A14: 5 | B14: 5 | C14: 116 | D14: 99 | E14: 85.34% | F14: 99 | G14: 100.00% | H14: ='[19]5 класс'!L2 -> 45 | I14: 45.45% | J14: ='[19]5 класс'!M2 -> 39 | K14: 39.39% | L14: ='[19]5 класс'!N2 -> 15 | M14: 15.15%
A15: 6 | B15: 6 | C15: 118 | D15: 96 | E15: 81.36% | F15: 96 | G15: 100.00% | H15: ='[19]6 класс'!L2 -> 11 | I15: 11.46% | J15: ='[19]6 класс'!M2 -> 56 | K15: 58.33% | L15: ='[19]6 класс'!N2 -> 29 | M15: 30.21%
A16: 7 | B16: 7 | C16: 115 | D16: 96 | E16: 83.48% | F16: 96 | G16: 100.00% | H16: ='[19]7 класс'!L2 -> 12 | I16: 12.50% | J16: ='[19]7 класс'!M2 -> 43 | K16: 44.79% | L16: ='[19]7 класс'!N2 -> 41 | M16: 42.71%
A17: 8 | B17: 8 | C17: 83 | D17: 65 | E17: 78.31% | F17: 65 | G17: 100.00% | H17: ='[19]8 класс'!L2 -> 4 | I17: 6.15% | J17: ='[19]8 класс'!M2 -> 42 | K17: 64.62% | L17: ='[19]8 класс'!N2 -> 19 | M17: 29.23%
A18: 9 | B18: 9 | C18: 116 | D18: 96 | E18: 82.76% | F18: 96 | G18: 100.00% | H18: ='[19]9 класс'!L2 -> 8 | I18: 8.33% | J18: ='[19]9 класс'!M2 -> 61 | K18: 63.54% | L18: ='[19]9 класс'!N2 -> 27 | M18: 28.13%
A19: 10 | B19: 10 | C19: 25 | D19: 20 | E19: 80.00% | F19: 20 | G19: 100.00% | H19: ='[19]10 класс'!L2 -> 0 | I19: 0.00% | J19: ='[19]10 класс'!M2 -> 7 | K19: 35.00% | L19: ='[19]10 класс'!N2 -> 13 | M19: 65.00%
A20: 11 | B20: 11 | C20: 41 | D20: 35 | E20: 85.37% | F20: 35 | G20: 100.00% | H20: ='[19]11 класс'!L2 -> 0 | I20: 0.00% | J20: ='[19]11 класс'!M2 -> 14 | K20: 40.00% | L20: ='[19]11 класс'!N2 -> 21 | M20: 60.00%
A21: Всего | C21: =SUM(C10:C20) -> 1181 | D21: =SUM(D10:D20) -> 999 | E21: 84.59% | F21: =SUM(F10:F20) -> 999 | G21: 100.00% | H21: =SUM(H10:H20) -> 100 | I21: 10.01% | J21: =SUM(J10:J20) -> 452 | K21: 45.25% | L21: =SUM(L10:L20) -> 447 | M21: 44.74%

Sheet 7 шк
A1: Форма мониторинга физической подготовленности обучающихся в сфере образования Российской Федерации
A2: № строки | B2: Класс | C2: Всего обучающихся в общеобразовательной организации | D2: Из них с основной группой здоровья | F2: Количество сдавших тест (от общей численности обучающихся с основной группой здоровья) | H2: Уровень физической подготовленности (количество сдавших тесты с основной группой здоровья) | N2: Проверка данных
D5: Кол-во | E5: % (от общей численности обучающихся) | F5: Кол-во | G5: % | H5: Низкий | J5: Средний | L5: Высокий
H8: Кол-во | I8: % | J8: Кол-во | K8: % | L8: Кол-во | M8: %
B9: 1 | C9: 2 | D9: 3 | E9: 4 | F9: 5 | G9: 6 | H9: 7 | I9: 8 | J9: 9 | K9: 10 | L9: 11 | M9: 12 | N9: 13
A10: 1 | B10: 1 | C10: 83 | D10: 81 | E10: =D10/C10 -> 97.59% | F10: =SUM(H10+J10+L10) -> 81 | G10: =F10/D10 -> 100.00% | H10: ='[3]1 класс'!J2 -> 46 | I10: =H10/F10 -> 56.79% | J10: ='[3]1 класс'!K2 -> 34 | K10: =J10/F10 -> 41.98% | L10: ='[3]1 класс'!L2 -> 1 | M10: =L10/F10 -> 1.23% | N10: =IF((H10+J10+L10)>D10,"ОШИБКА","") -> 
A11: 2 | B11: 2 | C11: 112 | D11: 108 | E11: =D11/C11 -> 96.43% | F11: =SUM(H11+J11+L11) -> 108 | G11: =F11/D11 -> 100.00% | H11: ='[3]2 класс'!J2 -> 32 | I11: =H11/F11 -> 29.63% | J11: ='[3]2 класс'!K2 -> 64 | K11: =J11/F11 -> 59.26% | L11: ='[3]2 класс'!L2 -> 12 | M11: =L11/F11 -> 11.11% | N11: =IF((H11+J11+L11)>D11,"ОШИБКА","") -> 
A12: 3 | B12: 3 | C12: 86 | D12: 78 | E12: 90.70% | F12: 78 | G12: 100.00% | H12: ='[3]3 класс'!J2 -> 11 | I12: 14.10% | J12: ='[3]3 класс'!K2 -> 45 | K12: 57.69% | L12: ='[3]3 класс'!L2 -> 22 | M12: 28.21%
A13: 4 | B13: 4 | C13: 82 | D13: 76 | E13: 92.68% | F13: 76 | G13: 100.00% | H13: ='[3]4 класс'!K2 -> 15 | I13: 19.74% | J13: ='[3]4 класс'!L2 -> 42 | K13: 55.26% | L13: ='[3]4 класс'!M2 -> 19 | M13: 25.00%
A14: 5 | B14: 5 | C14: 45 | D14: 43 | E14: 95.56% | F14: 43 | G14: 100.00% | H14: ='[3]5 класс'!L2 -> 15 | I14: 34.88% | J14: ='[3]5 класс'!M2 -> 26 | K14: 60.47% | L14: ='[3]5 класс'!N2 -> 2 | M14: 4.65%
A15: 6 | B15: 6 | C15: 70 | D15: 64 | E15: 91.43% | F15: 64 | G15: 100.00% | H15: ='[3]6 класс'!L2 -> 17 | I15: 26.56% | J15: ='[3]6 класс'!M2 -> 41 | K15: 64.06% | L15: ='[3]6 класс'!N2 -> 6 | M15: 9.38%
A16: 7 | B16: 7 | C16: 46 | D16: 44 | E16: 95.65% | F16: 44 | G16: 100.00% | H16: ='[3]7 класс'!L2 -> 8 | I16: 18.18% | J16: ='[3]7 класс'!M2 -> 27 | K16: 61.36% | L16: ='[3]7 класс'!N2 -> 9 | M16: 20.45%
A17: 8 | B17: 8 | C17: 52 | D17: 46 | E17: 88.46% | F17: 46 | G17: 100.00% | H17: ='[3]8 класс'!L2 -> 6 | I17: 13.04% | J17: ='[3]8 класс'!M2 -> 26 | K17: 56.52% | L17: ='[3]8 класс'!N2 -> 14 | M17: 30.43%
A18: 9 | B18: 9 | C18: 61 | D18: 53 | E18: 86.89% | F18: 53 | G18: 100.00% | H18: ='[3]9 класс'!L2 -> 3 | I18: 5.66% | J18: ='[3]9 класс'!M2 -> 34 | K18: 64.15% | L18: ='[3]9 класс'!N2 -> 16 | M18: 30.19%
A19: 10 | B19: 10 | C19: 34 | D19: 32 | E19: 94.12% | F19: 32 | G19: 100.00% | H19: ='[3]10 класс'!L2 -> 1 | I19: 3.13% | J19: ='[3]10 класс'!M2 -> 22 | K19: 68.75% | L19: ='[3]10 класс'!N2 -> 9 | M19: 28.13%
A20: 11 | B20: 11 | C20: 14 | D20: 11 | E20: 78.57% | F20: 11 | G20: 100.00% | H20: ='[3]11 класс'!L2 -> 1 | I20: 9.09% | J20: ='[3]11 класс'!M2 -> 6 | K20: 54.55% | L20: ='[3]11 класс'!N2 -> 4 | M20: 36.36%
A21: Всего | C21: =SUM(C10:C20) -> 685 | D21: =SUM(D10:D20) -> 636 | E21: 92.85% | F21: =SUM(F10:F20) -> 636 | G21: 100.00% | H21: =SUM(H10:H20) -> 155 | I21: 24.37% | J21: =SUM(J10:J20) -> 367 | K21: 57.70% | L21: =SUM(L10:L20) -> 114 | M21: 17.92%

Sheet Тг
A1: Форма мониторинга физической подготовленности обучающихся в сфере образования Российской Федерации
A2: № строки | B2: Класс | C2: Всего обучающихся в общеобразовательной организации | D2: Из них с основной группой здоровья | F2: Количество сдавших тест (от общей численности обучающихся с основной группой здоровья) | H2: Уровень физической подготовленности (количество сдавших тесты с основной группой здоровья) | N2: Проверка данных
D5: Кол-во | E5: % (от общей численности обучающихся) | F5: Кол-во | G5: % | H5: Низкий | J5: Средний | L5: Высокий
H8: Кол-во | I8: % | J8: Кол-во | K8: % | L8: Кол-во | M8: %
B9: 1 | C9: 2 | D9: 3 | E9: 4 | F9: 5 | G9: 6 | H9: 7 | I9: 8 | J9: 9 | K9: 10 | L9: 11 | M9: 12 | N9: 13
A10: 1 | B10: 1 | C10: 43 | D10: 42 | E10: =D10/C10 -> 97.67% | F10: =SUM(H10+J10+L10) -> 42 | G10: =F10/D10 -> 100.00% | H10: ='[4]1 класс'!J2 -> 15 | I10: =H10/F10 -> 35.71% | J10: ='[4]1 класс'!K2 -> 15 | K10: =J10/F10 -> 35.71% | L10: ='[4]1 класс'!L2 -> 12 | M10: =L10/F10 -> 28.57% | N10: =IF((H10+J10+L10)>D10,"ОШИБКА","") -> 
A11: 2 | B11: 2 | C11: 35 | D11: 20 | E11: =D11/C11 -> 57.14% | F11: =SUM(H11+J11+L11) -> 20 | G11: =F11/D11 -> 100.00% | H11: ='[4]2 класс'!J2 -> 5 | I11: =H11/F11 -> 25.00% | J11: ='[4]2 класс'!K2 -> 14 | K11: =J11/F11 -> 70.00% | L11: ='[4]2 класс'!L2 -> 1 | M11: =L11/F11 -> 5.00% | N11: =IF((H11+J11+L11)>D11,"ОШИБКА","") -> 
A12: 3 | B12: 3 | C12: 46 | D12: 41 | E12: 89.13% | F12: 41 | G12: 100.00% | H12: ='[4]3 класс'!J2 -> 8 | I12: 19.51% | J12: ='[4]3 класс'!K2 -> 27 | K12: 65.85% | L12: ='[4]3 класс'!L2 -> 6 | M12: 14.63%
A13: 4 | B13: 4 | C13: 39 | D13: 18 | E13: 46.15% | F13: 18 | G13: 100.00% | H13: ='[4]4 класс'!K2 -> 11 | I13: 61.11% | J13: ='[4]4 класс'!L2 -> 4 | K13: 22.22% | L13: ='[4]4 класс'!M2 -> 3 | M13: 16.67%
A14: 5 | B14: 5 | C14: 39 | D14: 39 | E14: 100.00% | F14: 39 | G14: 100.00% | H14: ='[4]5 класс'!L2 -> 19 | I14: 48.72% | J14: ='[4]5 класс'!M2 -> 14 | K14: 35.90% | L14: ='[4]5 класс'!N2 -> 6 | M14: 15.38%
A15: 6 | B15: 6 | C15: 32 | D15: 25 | E15: 78.13% | F15: 25 | G15: 100.00% | H15: ='[4]6 класс'!L2 -> 6 | I15: 24.00% | J15: ='[4]6 класс'!M2 -> 17 | K15: 68.00% | L15: ='[4]6 класс'!N2 -> 2 | M15: 8.00%
A16: 7 | B16: 7 | C16: 26 | D16: 20 | E16: 76.92% | F16: 20 | G16: 100.00% | H16: ='[4]7 класс'!L2 -> 5 | I16: 25.00% | J16: ='[4]7 класс'!M2 -> 13 | K16: 65.00% | L16: ='[4]7 класс'!N2 -> 2 | M16: 10.00%
A17: 8 | B17: 8 | C17: 25 | D17: 22 | E17: 88.00% | F17: 22 | G17: 100.00% | H17: ='[4]8 класс'!L2 -> 3 | I17: 13.64% | J17: ='[4]8 класс'!M2 -> 17 | K17: 77.27% | L17: ='[4]8 класс'!N2 -> 2 | M17: 9.09%
A18: 9 | B18: 9 | C18: 37 | D18: 30 | E18: 81.08% | F18: 30 | G18: 100.00% | H18: ='[4]9 класс'!L2 -> 4 | I18: 13.33% | J18: ='[4]9 класс'!M2 -> 20 | K18: 66.67% | L18: ='[4]9 класс'!N2 -> 6 | M18: 20.00%
A19: 10 | B19: 10 | C19: 19 | D19: 19 | E19: 100.00% | F19: 19 | G19: 100.00% | H19: ='[4]10 класс'!L2 -> 10 | I19: 52.63% | J19: ='[4]10 класс'!M2 -> 5 | K19: 26.32% | L19: ='[4]10 класс'!N2 -> 4 | M19: 21.05%
A20: 11 | B20: 11 | C20: 10 | D20: 10 | E20: 100.00% | F20: 8 | G20: 80.00% | H20: ='[4]11 класс'!L2 -> 4 | I20: 50.00% | J20: ='[4]11 класс'!M2 -> 2 | K20: 25.00% | L20: ='[4]11 класс'!N2 -> 2 | M20: 25.00%
A21: Всего | C21: =SUM(C10:C20) -> 351 | D21: =SUM(D10:D20) -> 286 | E21: 81.48% | F21: =SUM(F10:F20) -> 284 | G21: 99.30% | H21: =SUM(H10:H20) -> 90 | I21: 31.69% | J21: =SUM(J10:J20) -> 148 | K21: 52.11% | L21: =SUM(L10:L20) -> 46 | M21: 16.20%

Sheet Савалеево
A1: Форма мониторинга физической подготовленности обучающихся в сфере образования Российской Федерации
A2: № строки | B2: Класс | C2: Всего обучающихся в общеобразовательной организации | D2: Из них с основной группой здоровья | F2: Количество сдавших тест (от общей численности обучающихся с основной группой здоровья) | H2: Уровень физической подготовленности (количество сдавших тесты с основной группой здоровья) | N2: Проверка данных
D5: Кол-во | E5: % (от общей численности обучающихся) | F5: Кол-во | G5: % | H5: Низкий | J5: Средний | L5: Высокий
H8: Кол-во | I8: % | J8: Кол-во | K8: % | L8: Кол-во | M8: %
B9: 1 | C9: 2 | D9: 3 | E9: 4 | F9: 5 | G9: 6 | H9: 7 | I9: 8 | J9: 9 | K9: 10 | L9: 11 | M9: 12 | N9: 13
A10: 1 | B10: 1 | C10: 15 | D10: 15 | E10: =D10/C10 -> 100.00% | F10: =SUM(H10+J10+L10) -> 15 | G10: =F10/D10 -> 100.00% | H10: ='[14]1 класс'!J2 -> 9 | I10: =H10/F10 -> 60.00% | J10: ='[14]1 класс'!K2 -> 3 | K10: =J10/F10 -> 20.00% | L10: ='[14]1 класс'!L2 -> 3 | M10: =L10/F10 -> 20.00% | N10: =IF((H10+J10+L10)>D10,"ОШИБКА","") -> 
A11: 2 | B11: 2 | C11: 10 | D11: 9 | E11: =D11/C11 -> 90.00% | F11: =SUM(H11+J11+L11) -> 9 | G11: =F11/D11 -> 100.00% | H11: ='[14]2 класс'!J2 -> 5 | I11: =H11/F11 -> 55.56% | J11: ='[14]2 класс'!K2 -> 3 | K11: =J11/F11 -> 33.33% | L11: ='[14]2 класс'!L2 -> 1 | M11: =L11/F11 -> 11.11% | N11: =IF((H11+J11+L11)>D11,"ОШИБКА","") -> 
A12: 3 | B12: 3 | C12: 8 | D12: 7 | E12: 87.50% | F12: 7 | G12: 100.00% | H12: ='[14]3 класс'!J2 -> 2 | I12: 28.57% | J12: ='[14]3 класс'!K2 -> 5 | K12: 71.43% | L12: ='[14]3 класс'!L2 -> 0 | M12: 0.00%
A13: 4 | B13: 4 | C13: 14 | D13: 13 | E13: 92.86% | F13: 13 | G13: 100.00% | H13: ='[14]4 класс'!K2 -> 1 | I13: 7.69% | J13: ='[14]4 класс'!L2 -> 8 | K13: 61.54% | L13: ='[14]4 класс'!M2 -> 4 | M13: 30.77%
A14: 5 | B14: 5 | C14: 15 | D14: 13 | E14: 86.67% | F14: 13 | G14: 100.00% | H14: ='[14]5 класс'!L2 -> 4 | I14: 30.77% | J14: ='[14]5 класс'!M2 -> 8 | K14: 61.54% | L14: ='[14]5 класс'!N2 -> 1 | M14: 7.69%
A15: 6 | B15: 6 | C15: 12 | D15: 12 | E15: 100.00% | F15: 12 | G15: 100.00% | H15: ='[14]6 класс'!L2 -> 1 | I15: 8.33% | J15: ='[14]6 класс'!M2 -> 8 | K15: 66.67% | L15: ='[14]6 класс'!N2 -> 3 | M15: 25.00%
A16: 7 | B16: 7 | C16: 7 | D16: 6 | E16: 85.71% | F16: 6 | G16: 100.00% | H16: ='[14]7 класс'!L2 -> 2 | I16: 33.33% | J16: ='[14]7 класс'!M2 -> 3 | K16: 50.00% | L16: ='[14]7 класс'!N2 -> 1 | M16: 16.67%
A17: 8 | B17: 8 | C17: 5 | D17: 5 | E17: 100.00% | F17: 5 | G17: 100.00% | H17: ='[14]8 класс'!L2 -> 2 | I17: 40.00% | J17: ='[14]8 класс'!M2 -> 2 | K17: 40.00% | L17: ='[14]8 класс'!N2 -> 1 | M17: 20.00%
A18: 9 | B18: 9 | C18: 16 | D18: 16 | E18: 100.00% | F18: 16 | G18: 100.00% | H18: ='[14]9 класс'!L2 -> 3 | I18: 18.75% | J18: ='[14]9 класс'!M2 -> 6 | K18: 37.50% | L18: ='[14]9 класс'!N2 -> 7 | M18: 43.75%
A19: 10 | B19: 10 | C19: 5 | D19: 5 | E19: 100.00% | F19: 5 | G19: 100.00% | H19: ='[14]10 класс'!L2 -> 0 | I19: 0.00% | J19: ='[14]10 класс'!M2 -> 1 | K19: 20.00% | L19: ='[14]10 класс'!N2 -> 4 | M19: 80.00%
A20: 11 | B20: 11 | C20: 4 | D20: 3 | E20: 75.00% | F20: 3 | G20: 100.00% | H20: ='[14]11 класс'!L2 -> 0 | I20: 0.00% | J20: ='[14]11 класс'!M2 -> 1 | K20: 33.33% | L20: ='[14]11 класс'!N2 -> 2 | M20: 66.67%
A21: Всего | C21: =SUM(C10:C20) -> 111 | D21: =SUM(D10:D20) -> 104 | E21: 93.69% | F21: =SUM(F10:F20) -> 104 | G21: 100.00% | H21: =SUM(H10:H20) -> 29 | I21: 27.88% | J21: =SUM(J10:J20) -> 48 | K21: 46.15% | L21: =SUM(L10:L20) -> 27 | M21: 25.96%

Sheet Кадыро
A1: Форма мониторинга физической подготовленности обучающихся в сфере образования Российской Федерации
A2: № строки | B2: Класс | C2: Всего обучающихся в общеобразовательной организации | D2: Из них с основной группой здоровья | F2: Количество сдавших тест (от общей численности обучающихся с основной группой здоровья) | H2: Уровень физической подготовленности (количество сдавших тесты с основной группой здоровья) | N2: Проверка данных
D5: Кол-во | E5: % (от общей численности обучающихся) | F5: Кол-во | G5: % | H5: Низкий | J5: Средний | L5: Высокий
H8: Кол-во | I8: % | J8: Кол-во | K8: % | L8: Кол-во | M8: %
B9: 1 | C9: 2 | D9: 3 | E9: 4 | F9: 5 | G9: 6 | H9: 7 | I9: 8 | J9: 9 | K9: 10 | L9: 11 | M9: 12 | N9: 13
A10: 1 | B10: 1 | C10: 12 | D10: 12 | E10: =D10/C10 -> 100.00% | F10: =SUM(H10+J10+L10) -> 12 | G10: =F10/D10 -> 100.00% | H10: ='[5]1 класс'!J2 -> 0 | I10: =H10/F10 -> 0.00% | J10: ='[5]1 класс'!K2 -> 11 | K10: =J10/F10 -> 91.67% | L10: ='[5]1 класс'!L2 -> 1 | M10: =L10/F10 -> 8.33% | N10: =IF((H10+J10+L10)>D10,"ОШИБКА","") -> 
A11: 2 | B11: 2 | C11: 5 | D11: 4 | E11: =D11/C11 -> 80.00% | F11: =SUM(H11+J11+L11) -> 4 | G11: =F11/D11 -> 100.00% | H11: ='[5]2 класс'!J2 -> 0 | I11: =H11/F11 -> 0.00% | J11: ='[5]2 класс'!K2 -> 2 | K11: =J11/F11 -> 50.00% | L11: ='[5]2 класс'!L2 -> 2 | M11: =L11/F11 -> 50.00% | N11: =IF((H11+J11+L11)>D11,"ОШИБКА","") -> 
A12: 3 | B12: 3 | C12: 11 | D12: 11 | E12: 100.00% | F12: 11 | G12: 100.00% | H12: ='[5]3 класс'!J2 -> 0 | I12: 0.00% | J12: ='[5]3 класс'!K2 -> 8 | K12: 72.73% | L12: ='[5]3 класс'!L2 -> 3 | M12: 27.27%
A13: 4 | B13: 4 | C13: 7 | D13: 7 | E13: 100.00% | F13: 7 | G13: 100.00% | H13: ='[5]4 класс'!K2 -> 1 | I13: 14.29% | J13: ='[5]4 класс'!L2 -> 4 | K13: 57.14% | L13: ='[5]4 класс'!M2 -> 2 | M13: 28.57%
A14: 5 | B14: 5 | C14: 14 | D14: 14 | E14: 100.00% | F14: 14 | G14: 100.00% | H14: ='[5]5 класс'!L2 -> 1 | I14: 7.14% | J14: ='[5]5 класс'!M2 -> 9 | K14: 64.29% | L14: ='[5]5 класс'!N2 -> 4 | M14: 28.57%
A15: 6 | B15: 6 | C15: 9 | D15: 9 | E15: 100.00% | F15: 9 | G15: 100.00% | H15: ='[5]6 класс'!L2 -> 1 | I15: 11.11% | J15: ='[5]6 класс'!M2 -> 7 | K15: 77.78% | L15: ='[5]6 класс'!N2 -> 1 | M15: 11.11%
A16: 7 | B16: 7 | C16: 10 | D16: 9 | E16: 90.00% | F16: 9 | G16: 100.00% | H16: ='[5]7 класс'!L2 -> 0 | I16: 0.00% | J16: ='[5]7 класс'!M2 -> 5 | K16: 55.56% | L16: ='[5]7 класс'!N2 -> 4 | M16: 44.44%
A17: 8 | B17: 8 | C17: 9 | D17: 9 | E17: 100.00% | F17: 9 | G17: 100.00% | H17: ='[5]8 класс'!L2 -> 0 | I17: 0.00% | J17: ='[5]8 класс'!M2 -> 5 | K17: 55.56% | L17: ='[5]8 класс'!N2 -> 4 | M17: 44.44%
A18: 9 | B18: 9 | C18: 9 | D18: 9 | E18: 100.00% | F18: 9 | G18: 100.00% | H18: ='[5]9 класс'!L2 -> 2 | I18: 22.22% | J18: ='[5]9 класс'!M2 -> 6 | K18: 66.67% | L18: ='[5]9 класс'!N2 -> 1 | M18: 11.11%
A19: 10 | B19: 10 | C19: 5 | D19: 4 | E19: 80.00% | F19: 4 | G19: 100.00% | H19: ='[5]10 класс'!L2 -> 0 | I19: 0.00% | J19: ='[5]10 класс'!M2 -> 2 | K19: 50.00% | L19: ='[5]10 класс'!N2 -> 2 | M19: 50.00%
A20: 11 | B20: 11 | C20: 6 | D20: 5 | E20: 83.33% | F20: 5 | G20: 100.00% | H20: ='[5]11 класс'!L2 -> 0 | I20: 0.00% | J20: ='[5]11 класс'!M2 -> 2 | K20: 40.00% | L20: ='[5]11 класс'!N2 -> 3 | M20: 60.00%
A21: Всего | C21: =SUM(C10:C20) -> 97 | D21: =SUM(D10:D20) -> 93 | E21: 95.88% | F21: =SUM(F10:F20) -> 93 | G21: 100.00% | H21: =SUM(H10:H20) -> 5 | I21: 5.38% | J21: =SUM(J10:J20) -> 61 | K21: 65.59% | L21: =SUM(L10:L20) -> 27 | M21: 29.03%

Sheet Бегишево
A1: Форма мониторинга физической подготовленности обучающихся в сфере образования Российской Федерации
A2: № строки | B2: Класс | C2: Всего обучающихся в общеобразовательной организации | D2: Из них с основной группой здоровья | F2: Количество сдавших тест (от общей численности обучающихся с основной группой здоровья) | H2: Уровень физической подготовленности (количество сдавших тесты с основной группой здоровья) | N2: Проверка данных
D5: Кол-во | E5: % (от общей численности обучающихся) | F5: Кол-во | G5: % | H5: Низкий | J5: Средний | L5: Высокий
H8: Кол-во | I8: % | J8: Кол-во | K8: % | L8: Кол-во | M8: %
B9: 1 | C9: 2 | D9: 3 | E9: 4 | F9: 5 | G9: 6 | H9: 7 | I9: 8 | J9: 9 | K9: 10 | L9: 11 | M9: 12 | N9: 13
A10: 1 | B10: 1 | C10: 7 | D10: 7 | E10: =D10/C10 -> 100.00% | F10: =SUM(H10+J10+L10) -> 7 | G10: =F10/D10 -> 100.00% | H10: ='[22]1 класс'!J2 -> 0 | I10: =H10/F10 -> 0.00% | J10: ='[22]1 класс'!K2 -> 6 | K10: =J10/F10 -> 85.71% | L10: ='[22]1 класс'!L2 -> 1 | M10: =L10/F10 -> 14.29% | N10: =IF((H10+J10+L10)>D10,"ОШИБКА","") -> 
A11: 2 | B11: 2 | C11: 2 | D11: 2 | E11: =D11/C11 -> 100.00% | F11: =SUM(H11+J11+L11) -> 2 | G11: =F11/D11 -> 100.00% | H11: ='[22]2 класс'!J2 -> 0 | I11: =H11/F11 -> 0.00% | J11: ='[22]2 класс'!K2 -> 1 | K11: =J11/F11 -> 50.00% | L11: ='[22]2 класс'!L2 -> 1 | M11: =L11/F11 -> 50.00% | N11: =IF((H11+J11+L11)>D11,"ОШИБКА","") -> 
A12: 3 | B12: 3 | C12: 0 | D12: 0 | F12: 0 | H12: ='[22]3 класс'!J2 -> 0 | J12: ='[22]3 класс'!K2 -> 0 | L12: ='[22]3 класс'!L2 -> 0
A13: 4 | B13: 4 | C13: 7 | D13: 7 | E13: 100.00% | F13: 7 | G13: 100.00% | H13: ='[22]4 класс'!K2 -> 1 | I13: 14.29% | J13: ='[22]4 класс'!L2 -> 4 | K13: 57.14% | L13: ='[22]4 класс'!M2 -> 2 | M13: 28.57%
A14: 5 | B14: 5 | C14: 6 | D14: 5 | E14: 83.33% | F14: 5 | G14: 100.00% | H14: ='[22]5 класс'!L2 -> 0 | I14: 0.00% | J14: ='[22]5 класс'!M2 -> 3 | K14: 60.00% | L14: ='[22]5 класс'!N2 -> 2 | M14: 40.00%
A15: 6 | B15: 6 | C15: 5 | D15: 5 | E15: 100.00% | F15: 5 | G15: 100.00% | H15: ='[22]6 класс'!L2 -> 0 | I15: 0.00% | J15: ='[22]6 класс'!M2 -> 5 | K15: 100.00% | L15: ='[22]6 класс'!N2 -> 0 | M15: 0.00%
A16: 7 | B16: 7 | C16: 4 | D16: 3 | E16: 75.00% | F16: 3 | G16: 100.00% | H16: ='[22]7 класс'!L2 -> 0 | I16: 0.00% | J16: ='[22]7 класс'!M2 -> 2 | K16: 66.67% | L16: ='[22]7 класс'!N2 -> 1 | M16: 33.33%
A17: 8 | B17: 8 | C17: 7 | D17: 6 | E17: 85.71% | F17: 6 | G17: 100.00% | H17: ='[22]8 класс'!L2 -> 0 | I17: 0.00% | J17: ='[22]8 класс'!M2 -> 4 | K17: 66.67% | L17: ='[22]8 класс'!N2 -> 2 | M17: 33.33%
A18: 9 | B18: 9 | C18: 7 | D18: 6 | E18: 85.71% | F18: 6 | G18: 100.00% | H18: ='[22]9 класс'!L2 -> 2 | I18: 33.33% | J18: ='[22]9 класс'!M2 -> 3 | K18: 50.00% | L18: ='[22]9 класс'!N2 -> 1 | M18: 16.67%
A19: 10 | B19: 10 | C19: 3 | D19: 3 | E19: 100.00% | F19: 3 | G19: 100.00% | H19: ='[22]10 класс'!L2 -> 0 | I19: 0.00% | J19: ='[22]10 класс'!M2 -> 1 | K19: 33.33% | L19: ='[22]10 класс'!N2 -> 2 | M19: 66.67%
A20: 11 | B20: 11 | C20: 5 | D20: 5 | E20: 100.00% | F20: 5 | G20: 100.00% | H20: ='[22]11 класс'!L2 -> 0 | I20: 0.00% | J20: ='[22]11 класс'!M2 -> 2 | K20: 40.00% | L20: ='[22]11 класс'!N2 -> 3 | M20: 60.00%
A21: Всего | C21: =SUM(C10:C20) -> 53 | D21: =SUM(D10:D20) -> 49 | E21: 92.45% | F21: =SUM(F10:F20) -> 49 | G21: 100.00% | H21: =SUM(H10:H20) -> 3 | I21: 6.12% | J21: =SUM(J10:J20) -> 31 | K21: 63.27% | L21: =SUM(L10:L20) -> 15 | M21: 30.61%

Sheet Н.Бишево
A1: Форма мониторинга физической подготовленности обучающихся в сфере образования Российской Федерации
A2: № строки | B2: Класс | C2: Всего обучающихся в общеобразовательной организации | D2: Из них с основной группой здоровья | F2: Количество сдавших тест (от общей численности обучающихся с основной группой здоровья) | H2: Уровень физической подготовленности (количество сдавших тесты с основной группой здоровья) | N2: Проверка данных
D5: Кол-во | E5: % (от общей численности обучающихся) | F5: Кол-во | G5: % | H5: Низкий | J5: Средний | L5: Высокий
H8: Кол-во | I8: % | J8: Кол-во | K8: % | L8: Кол-во | M8: %
B9: 1 | C9: 2 | D9: 3 | E9: 4 | F9: 5 | G9: 6 | H9: 7 | I9: 8 | J9: 9 | K9: 10 | L9: 11 | M9: 12 | N9: 13
A10: 1 | B10: 1 | C10: 7 | D10: 7 | E10: =D10/C10 -> 100.00% | F10: =SUM(H10+J10+L10) -> 7 | G10: =F10/D10 -> 100.00% | H10: ='[20]1 класс'!J2 -> 0 | I10: =H10/F10 -> 0.00% | J10: ='[20]1 класс'!K2 -> 6 | K10: =J10/F10 -> 85.71% | L10: ='[20]1 класс'!L2 -> 1 | M10: =L10/F10 -> 14.29% | N10: =IF((H10+J10+L10)>D10,"ОШИБКА","") -> 
A11: 2 | B11: 2 | C11: 8 | D11: 8 | E11: =D11/C11 -> 100.00% | F11: =SUM(H11+J11+L11) -> 8 | G11: =F11/D11 -> 100.00% | H11: ='[20]2 класс'!J2 -> 0 | I11: =H11/F11 -> 0.00% | J11: ='[20]2 класс'!K2 -> 8 | K11: =J11/F11 -> 100.00% | L11: ='[20]2 класс'!L2 -> 0 | M11: =L11/F11 -> 0.00% | N11: =IF((H11+J11+L11)>D11,"ОШИБКА","") -> 
A12: 3 | B12: 3 | C12: 6 | D12: 6 | E12: 100.00% | F12: 6 | G12: 100.00% | H12: ='[20]3 класс'!J2 -> 0 | I12: 0.00% | J12: ='[20]3 класс'!K2 -> 6 | K12: 100.00% | L12: ='[20]3 класс'!L2 -> 0 | M12: 0.00%
A13: 4 | B13: 4 | C13: 10 | D13: 8 | E13: 80.00% | F13: 8 | G13: 100.00% | H13: ='[20]4 класс'!K2 -> 1 | I13: 12.50% | J13: ='[20]4 класс'!L2 -> 7 | K13: 87.50% | L13: ='[20]4 класс'!M2 -> 0 | M13: 0.00%
A14: 5 | B14: 5 | C14: 5 | D14: 5 | E14: 100.00% | F14: 5 | G14: 100.00% | H14: ='[20]5 класс'!L2 -> 0 | I14: 0.00% | J14: ='[20]5 класс'!M2 -> 4 | K14: 80.00% | L14: ='[20]5 класс'!N2 -> 1 | M14: 20.00%
A15: 6 | B15: 6 | C15: 4 | D15: 4 | E15: 100.00% | F15: 4 | G15: 100.00% | H15: ='[20]6 класс'!L2 -> 0 | I15: 0.00% | J15: ='[20]6 класс'!M2 -> 4 | K15: 100.00% | L15: ='[20]6 класс'!N2 -> 0 | M15: 0.00%
A16: 7 | B16: 7 | C16: 6 | D16: 6 | E16: 100.00% | F16: 6 | G16: 100.00% | H16: ='[20]7 класс'!L2 -> 0 | I16: 0.00% | J16: ='[20]7 класс'!M2 -> 4 | K16: 66.67% | L16: ='[20]7 класс'!N2 -> 2 | M16: 33.33%
A17: 8 | B17: 8 | C17: 12 | D17: 12 | E17: 100.00% | F17: 12 | G17: 100.00% | H17: ='[20]8 класс'!L2 -> 2 | I17: 16.67% | J17: ='[20]8 класс'!M2 -> 7 | K17: 58.33% | L17: ='[20]8 класс'!N2 -> 3 | M17: 25.00%
A18: 9 | B18: 9 | C18: 9 | D18: 9 | E18: 100.00% | F18: 9 | G18: 100.00% | H18: ='[20]9 класс'!L2 -> 0 | I18: 0.00% | J18: ='[20]9 класс'!M2 -> 5 | K18: 55.56% | L18: ='[20]9 класс'!N2 -> 4 | M18: 44.44%
A19: 10 | B19: 10 | C19: 8 | D19: 8 | E19: 100.00% | F19: 8 | G19: 100.00% | H19: ='[20]10 класс'!L2 -> 1 | I19: 12.50% | J19: ='[20]10 класс'!M2 -> 3 | K19: 37.50% | L19: ='[20]10 класс'!N2 -> 4 | M19: 50.00%
A20: 11 | B20: 11 | C20: 5 | D20: 5 | E20: 100.00% | F20: 5 | G20: 100.00% | H20: ='[20]11 класс'!L2 -> 0 | I20: 0.00% | J20: ='[20]11 класс'!M2 -> 1 | K20: 20.00% | L20: ='[20]11 класс'!N2 -> 4 | M20: 80.00%
A21: Всего | C21: =SUM(C10:C20) -> 80 | D21: =SUM(D10:D20) -> 78 | E21: 97.50% | F21: =SUM(F10:F20) -> 78 | G21: 100.00% | H21: =SUM(H10:H20) -> 4 | I21: 5.13% | J21: =SUM(J10:J20) -> 55 | K21: 70.51% | L21: =SUM(L10:L20) -> 19 | M21: 24.36%

Sheet Поручиково
A1: Форма мониторинга физической подготовленности обучающихся в сфере образования Российской Федерации
A2: № строки | B2: Класс | C2: Всего обучающихся в общеобразовательной организации | D2: Из них с основной группой здоровья | F2: Количество сдавших тест (от общей численности обучающихся с основной группой здоровья) | H2: Уровень физической подготовленности (количество сдавших тесты с основной группой здоровья) | N2: Проверка данных
D5: Кол-во | E5: % (от общей численности обучающихся) | F5: Кол-во | G5: % | H5: Низкий | J5: Средний | L5: Высокий
H8: Кол-во | I8: % | J8: Кол-во | K8: % | L8: Кол-во | M8: %
B9: 1 | C9: 2 | D9: 3 | E9: 4 | F9: 5 | G9: 6 | H9: 7 | I9: 8 | J9: 9 | K9: 10 | L9: 11 | M9: 12 | N9: 13
A10: 1 | B10: 1 | C10: 6 | D10: 6 | E10: =D10/C10 -> 100.00% | F10: =SUM(H10+J10+L10) -> 6 | G10: =F10/D10 -> 100.00% | H10: ='[21]1 класс'!J2 -> 0 | I10: =H10/F10 -> 0.00% | J10: ='[21]1 класс'!K2 -> 5 | K10: =J10/F10 -> 83.33% | L10: ='[21]1 класс'!L2 -> 1 | M10: =L10/F10 -> 16.67% | N10: =IF((H10+J10+L10)>D10,"ОШИБКА","") -> 
A11: 2 | B11: 2 | C11: 6 | D11: 6 | E11: =D11/C11 -> 100.00% | F11: =SUM(H11+J11+L11) -> 6 | G11: =F11/D11 -> 100.00% | H11: ='[21]2 класс'!J2 -> 0 | I11: =H11/F11 -> 0.00% | J11: ='[21]2 класс'!K2 -> 4 | K11: =J11/F11 -> 66.67% | L11: ='[21]2 класс'!L2 -> 2 | M11: =L11/F11 -> 33.33% | N11: =IF((H11+J11+L11)>D11,"ОШИБКА","") -> 
A12: 3 | B12: 3 | C12: 5 | D12: 3 | E12: 60.00% | F12: 3 | G12: 100.00% | H12: ='[21]3 класс'!J2 -> 0 | I12: 0.00% | J12: ='[21]3 класс'!K2 -> 2 | K12: 66.67% | L12: ='[21]3 класс'!L2 -> 1 | M12: 33.33%
A13: 4 | B13: 4 | C13: 8 | D13: 5 | E13: 62.50% | F13: 5 | G13: 100.00% | H13: ='[21]4 класс'!K2 -> 2 | I13: 40.00% | J13: ='[21]4 класс'!L2 -> 3 | K13: 60.00% | L13: ='[21]4 класс'!M2 -> 0 | M13: 0.00%
A14: 5 | B14: 5 | C14: 5 | D14: 5 | E14: 100.00% | F14: 5 | G14: 100.00% | H14: ='[21]5 класс'!L2 -> 4 | I14: 80.00% | J14: ='[21]5 класс'!M2 -> 1 | K14: 20.00% | L14: ='[21]5 класс'!N2 -> 0 | M14: 0.00%
A15: 6 | B15: 6 | C15: 6 | D15: 4 | E15: 66.67% | F15: 4 | G15: 100.00% | H15: ='[21]6 класс'!L2 -> 2 | I15: 50.00% | J15: ='[21]6 класс'!M2 -> 2 | K15: 50.00% | L15: ='[21]6 класс'!N2 -> 0 | M15: 0.00%
A16: 7 | B16: 7 | C16: 1 | D16: 1 | E16: 100.00% | F16: 1 | G16: 100.00% | H16: ='[21]7 класс'!L2 -> 0 | I16: 0.00% | J16: ='[21]7 класс'!M2 -> 1 | K16: 100.00% | L16: ='[21]7 класс'!N2 -> 0 | M16: 0.00%
A17: 8 | B17: 8 | C17: 9 | D17: 7 | E17: 77.78% | F17: 7 | G17: 100.00% | H17: ='[21]8 класс'!L2 -> 1 | I17: 14.29% | J17: ='[21]8 класс'!M2 -> 4 | K17: 57.14% | L17: ='[21]8 класс'!N2 -> 2 | M17: 28.57%
A18: 9 | B18: 9 | C18: 7 | D18: 7 | E18: 100.00% | F18: 7 | G18: 100.00% | H18: ='[21]9 класс'!L2 -> 0 | I18: 0.00% | J18: ='[21]9 класс'!M2 -> 4 | K18: 57.14% | L18: ='[21]9 класс'!N2 -> 3 | M18: 42.86%
A19: 10 | B19: 10 | C19: 0 | D19: 0 | F19: 0 | H19: ='[21]10 класс'!L2 -> 0 | J19: ='[21]10 класс'!M2 -> 0 | L19: ='[21]10 класс'!N2 -> 0
A20: 11 | B20: 11 | C20: 0 | D20: 0 | F20: 0 | H20: ='[21]11 класс'!L2 -> 0 | J20: ='[21]11 класс'!M2 -> 0 | L20: ='[21]11 класс'!N2 -> 0
A21: Всего | C21: =SUM(C10:C20) -> 53 | D21: =SUM(D10:D20) -> 44 | E21: 83.02% | F21: =SUM(F10:F20) -> 44 | G21: 100.00% | H21: =SUM(H10:H20) -> 9 | I21: 20.45% | J21: =SUM(J10:J20) -> 26 | K21: 59.09% | L21: =SUM(L10:L20) -> 9 | M21: 20.45%

Sheet Тюгеевка
A1: Форма мониторинга физической подготовленности обучающихся в сфере образования Российской Федерации
A2: № строки | B2: Класс | C2: Всего обучающихся в общеобразовательной организации | D2: Из них с основной группой здоровья | F2: Количество сдавших тест (от общей численности обучающихся с основной группой здоровья) | H2: Уровень физической подготовленности (количество сдавших тесты с основной группой здоровья) | N2: Проверка данных
D5: Кол-во | E5: % (от общей численности обучающихся) | F5: Кол-во | G5: % | H5: Низкий | J5: Средний | L5: Высокий
H8: Кол-во | I8: % | J8: Кол-во | K8: % | L8: Кол-во | M8: %
B9: 1 | C9: 2 | D9: 3 | E9: 4 | F9: 5 | G9: 6 | H9: 7 | I9: 8 | J9: 9 | K9: 10 | L9: 11 | M9: 12 | N9: 13
A10: 1 | B10: 1 | C10: 3 | D10: 3 | E10: =D10/C10 -> 100.00% | F10: =SUM(H10+J10+L10) -> 3 | G10: =F10/D10 -> 100.00% | H10: ='[15]1 класс'!J2 -> 1 | I10: =H10/F10 -> 33.33% | J10: ='[15]1 класс'!K2 -> 2 | K10: =J10/F10 -> 66.67% | L10: ='[15]1 класс'!L2 -> 0 | M10: =L10/F10 -> 0.00% | N10: =IF((H10+J10+L10)>D10,"ОШИБКА","") -> 
A11: 2 | B11: 2 | C11: 3 | D11: 2 | E11: =D11/C11 -> 66.67% | F11: =SUM(H11+J11+L11) -> 2 | G11: =F11/D11 -> 100.00% | H11: ='[15]2 класс'!J2 -> 1 | I11: =H11/F11 -> 50.00% | J11: ='[15]2 класс'!K2 -> 1 | K11: =J11/F11 -> 50.00% | L11: ='[15]2 класс'!L2 -> 0 | M11: =L11/F11 -> 0.00% | N11: =IF((H11+J11+L11)>D11,"ОШИБКА","") -> 
A12: 3 | B12: 3 | C12: 2 | D12: 2 | E12: 100.00% | F12: 2 | G12: 100.00% | H12: ='[15]3 класс'!J2 -> 0 | I12: 0.00% | J12: ='[15]3 класс'!K2 -> 2 | K12: 100.00% | L12: ='[15]3 класс'!L2 -> 0 | M12: 0.00%
A13: 4 | B13: 4 | C13: 5 | D13: 5 | E13: 100.00% | F13: 5 | G13: 100.00% | H13: ='[15]4 класс'!K2 -> 2 | I13: 40.00% | J13: ='[15]4 класс'!L2 -> 1 | K13: 20.00% | L13: ='[15]4 класс'!M2 -> 2 | M13: 40.00%
A14: 5 | B14: 5 | C14: 6 | D14: 6 | E14: 100.00% | F14: 6 | G14: 100.00% | H14: ='[15]5 класс'!L2 -> 2 | I14: 33.33% | J14: ='[15]5 класс'!M2 -> 2 | K14: 33.33% | L14: ='[15]5 класс'!N2 -> 2 | M14: 33.33%
A15: 6 | B15: 6 | C15: 7 | D15: 7 | E15: 100.00% | F15: 7 | G15: 100.00% | H15: ='[15]6 класс'!L2 -> 1 | I15: 14.29% | J15: ='[15]6 класс'!M2 -> 5 | K15: 71.43% | L15: ='[15]6 класс'!N2 -> 1 | M15: 14.29%
A16: 7 | B16: 7 | C16: 3 | D16: 3 | E16: 100.00% | F16: 3 | G16: 100.00% | H16: ='[15]7 класс'!L2 -> 0 | I16: 0.00% | J16: ='[15]7 класс'!M2 -> 1 | K16: 33.33% | L16: ='[15]7 класс'!N2 -> 2 | M16: 66.67%
A17: 8 | B17: 8 | C17: 6 | D17: 6 | E17: 100.00% | F17: 6 | G17: 100.00% | H17: ='[15]8 класс'!L2 -> 0 | I17: 0.00% | J17: ='[15]8 класс'!M2 -> 2 | K17: 33.33% | L17: ='[15]8 класс'!N2 -> 4 | M17: 66.67%
A18: 9 | B18: 9 | C18: 1 | D18: 1 | E18: 100.00% | F18: 1 | G18: 100.00% | H18: ='[15]9 класс'!L2 -> 1 | I18: 100.00% | J18: ='[15]9 класс'!M2 -> 0 | K18: 0.00% | L18: ='[15]9 класс'!N2 -> 0 | M18: 0.00%
A19: 10 | B19: 10 | F19: 0 | H19: ='[15]10 класс'!L2 -> 0 | J19: ='[15]10 класс'!M2 -> 0 | L19: ='[15]10 класс'!N2 -> 0
A20: 11 | B20: 11 | F20: 0 | H20: ='[15]11 класс'!L2 -> 0 | J20: ='[15]11 класс'!M2 -> 0 | L20: ='[15]11 класс'!N2 -> 0
A21: Всего | C21: =SUM(C10:C20) -> 36 | D21: =SUM(D10:D20) -> 35 | E21: 97.22% | F21: =SUM(F10:F20) -> 35 | G21: 100.00% | H21: =SUM(H10:H20) -> 8 | I21: 22.86% | J21: =SUM(J10:J20) -> 16 | K21: 45.71% | L21: =SUM(L10:L20) -> 11 | M21: 31.43%

Sheet В.шипки
A1: Форма мониторинга физической подготовленности обучающихся в сфере образования Российской Федерации
A2: № строки | B2: Класс | C2: Всего обучающихся в общеобразовательной организации | D2: Из них с основной группой здоровья | F2: Количество сдавших тест (от общей численности обучающихся с основной группой здоровья) | H2: Уровень физической подготовленности (количество сдавших тесты с основной группой здоровья) | N2: Проверка данных
D5: Кол-во | E5: % (от общей численности обучающихся) | F5: Кол-во | G5: % | H5: Низкий | J5: Средний | L5: Высокий
H8: Кол-во | I8: % | J8: Кол-во | K8: % | L8: Кол-во | M8: %
B9: 1 | C9: 2 | D9: 3 | E9: 4 | F9: 5 | G9: 6 | H9: 7 | I9: 8 | J9: 9 | K9: 10 | L9: 11 | M9: 12 | N9: 13
A10: 1 | B10: 1 | C10: 6 | D10: 6 | E10: =D10/C10 -> 100.00% | F10: =SUM(H10+J10+L10) -> 6 | G10: =F10/D10 -> 100.00% | H10: ='[13]1 класс'!J2 -> 4 | I10: =H10/F10 -> 66.67% | J10: ='[13]1 класс'!K2 -> 2 | K10: =J10/F10 -> 33.33% | L10: ='[13]1 класс'!L2 -> 0 | M10: =L10/F10 -> 0.00% | N10: =IF((H10+J10+L10)>D10,"ОШИБКА","") -> 
A11: 2 | B11: 2 | C11: 4 | D11: 4 | E11: =D11/C11 -> 100.00% | F11: =SUM(H11+J11+L11) -> 4 | G11: =F11/D11 -> 100.00% | H11: ='[13]2 класс'!J2 -> 4 | I11: =H11/F11 -> 100.00% | J11: ='[13]2 класс'!K2 -> 0 | K11: =J11/F11 -> 0.00% | L11: ='[13]2 класс'!L2 -> 0 | M11: =L11/F11 -> 0.00% | N11: =IF((H11+J11+L11)>D11,"ОШИБКА","") -> 
A12: 3 | B12: 3 | C12: 8 | D12: 8 | E12: 100.00% | F12: 8 | G12: 100.00% | H12: ='[13]3 класс'!J2 -> 7 | I12: 87.50% | J12: ='[13]3 класс'!K2 -> 1 | K12: 12.50% | L12: ='[13]3 класс'!L2 -> 0 | M12: 0.00%
A13: 4 | B13: 4 | C13: 5 | D13: 5 | E13: 100.00% | F13: 5 | G13: 100.00% | H13: ='[13]4 класс'!K2 -> 1 | I13: 20.00% | J13: ='[13]4 класс'!L2 -> 4 | K13: 80.00% | L13: ='[13]4 класс'!M2 -> 0 | M13: 0.00%
A14: 5 | B14: 5 | C14: 3 | D14: 3 | E14: 100.00% | F14: 3 | G14: 100.00% | H14: ='[13]5 класс'!L2 -> 2 | I14: 66.67% | J14: ='[13]5 класс'!M2 -> 1 | K14: 33.33% | L14: ='[13]5 класс'!N2 -> 0 | M14: 0.00%
A15: 6 | B15: 6 | C15: 6 | D15: 6 | E15: 100.00% | F15: 6 | G15: 100.00% | H15: ='[13]6 класс'!L2 -> 4 | I15: 66.67% | J15: ='[13]6 класс'!M2 -> 2 | K15: 33.33% | L15: ='[13]6 класс'!N2 -> 0 | M15: 0.00%
A16: 7 | B16: 7 | C16: 3 | D16: 3 | E16: 100.00% | F16: 3 | G16: 100.00% | H16: ='[13]7 класс'!L2 -> 0 | I16: 0.00% | J16: ='[13]7 класс'!M2 -> 3 | K16: 100.00% | L16: ='[13]7 класс'!N2 -> 0 | M16: 0.00%
A17: 8 | B17: 8 | C17: 5 | D17: 5 | E17: 100.00% | F17: 5 | G17: 100.00% | H17: ='[13]8 класс'!L2 -> 4 | I17: 80.00% | J17: ='[13]8 класс'!M2 -> 1 | K17: 20.00% | L17: ='[13]8 класс'!N2 -> 0 | M17: 0.00%
A18: 9 | B18: 9 | C18: 6 | D18: 6 | E18: 100.00% | F18: 6 | G18: 100.00% | H18: ='[13]9 класс'!L2 -> 6 | I18: 100.00% | J18: ='[13]9 класс'!M2 -> 0 | K18: 0.00% | L18: ='[13]9 класс'!N2 -> 0 | M18: 0.00%
A19: 10 | B19: 10 | F19: 0 | H19: ='[13]10 класс'!L2 -> 0 | J19: ='[13]10 класс'!M2 -> 0 | L19: ='[13]10 класс'!N2 -> 0
A20: 11 | B20: 11 | F20: 0 | H20: ='[13]11 класс'!L2 -> 0 | J20: ='[13]11 класс'!M2 -> 0 | L20: ='[13]11 класс'!N2 -> 0
A21: Всего | C21: =SUM(C10:C20) -> 46 | D21: =SUM(D10:D20) -> 46 | E21: 100.00% | F21: =SUM(F10:F20) -> 46 | G21: 100.00% | H21: =SUM(H10:H20) -> 32 | I21: 69.57% | J21: =SUM(J10:J20) -> 14 | K21: 30.43% | L21: =SUM(L10:L20) -> 0 | M21: 0.00%

Sheet В.налим
A1: Форма мониторинга физической подготовленности обучающихся в сфере образования Российской Федерации
A2: № строки | B2: Класс | C2: Всего обучающихся в общеобразовательной организации | D2: Из них с основной группой здоровья | F2: Количество сдавших тест (от общей численности обучающихся с основной группой здоровья) | H2: Уровень физической подготовленности (количество сдавших тесты с основной группой здоровья) | N2: Проверка данных
D5: Кол-во | E5: % (от общей численности обучающихся) | F5: Кол-во | G5: % | H5: Низкий | J5: Средний | L5: Высокий
H8: Кол-во | I8: % | J8: Кол-во | K8: % | L8: Кол-во | M8: %
B9: 1 | C9: 2 | D9: 3 | E9: 4 | F9: 5 | G9: 6 | H9: 7 | I9: 8 | J9: 9 | K9: 10 | L9: 11 | M9: 12 | N9: 13
A10: 1 | B10: 1 | C10: 2 | D10: 2 | E10: =D10/C10 -> 100.00% | F10: =SUM(H10+J10+L10) -> 2 | G10: =F10/D10 -> 100.00% | H10: ='[12]1 класс'!J2 -> 0 | I10: =H10/F10 -> 0.00% | J10: ='[12]1 класс'!K2 -> 2 | K10: =J10/F10 -> 100.00% | L10: ='[12]1 класс'!L2 -> 0 | M10: =L10/F10 -> 0.00% | N10: =IF((H10+J10+L10)>D10,"ОШИБКА","") -> 
A11: 2 | B11: 2 | C11: 4 | D11: 4 | E11: =D11/C11 -> 100.00% | F11: =SUM(H11+J11+L11) -> 4 | G11: =F11/D11 -> 100.00% | H11: ='[12]2 класс'!J2 -> 1 | I11: =H11/F11 -> 25.00% | J11: ='[12]2 класс'!K2 -> 3 | K11: =J11/F11 -> 75.00% | L11: ='[12]2 класс'!L2 -> 0 | M11: =L11/F11 -> 0.00% | N11: =IF((H11+J11+L11)>D11,"ОШИБКА","") -> 
A12: 3 | B12: 3 | C12: 5 | D12: 5 | E12: 100.00% | F12: 5 | G12: 100.00% | H12: ='[12]3 класс'!J2 -> 0 | I12: 0.00% | J12: ='[12]3 класс'!K2 -> 5 | K12: 100.00% | L12: ='[12]3 класс'!L2 -> 0 | M12: 0.00%
A13: 4 | B13: 4 | C13: 3 | D13: 2 | E13: 66.67% | F13: 2 | G13: 100.00% | H13: ='[12]4 класс'!K2 -> 0 | I13: 0.00% | J13: ='[12]4 класс'!L2 -> 1 | K13: 50.00% | L13: ='[12]4 класс'!M2 -> 1 | M13: 50.00%
A14: 5 | B14: 5 | C14: 2 | D14: 2 | E14: 100.00% | F14: 2 | G14: 100.00% | H14: ='[12]5 класс'!L2 -> 0 | I14: 0.00% | J14: ='[12]5 класс'!M2 -> 2 | K14: 100.00% | L14: ='[12]5 класс'!N2 -> 0 | M14: 0.00%
A15: 6 | B15: 6 | C15: 3 | D15: 2 | E15: 66.67% | F15: 2 | G15: 100.00% | H15: ='[12]6 класс'!L2 -> 0 | I15: 0.00% | J15: ='[12]6 класс'!M2 -> 2 | K15: 100.00% | L15: ='[12]6 класс'!N2 -> 0 | M15: 0.00%
A16: 7 | B16: 7 | C16: 3 | D16: 2 | E16: 66.67% | F16: 2 | G16: 100.00% | H16: ='[12]7 класс'!L2 -> 0 | I16: 0.00% | J16: ='[12]7 класс'!M2 -> 1 | K16: 50.00% | L16: ='[12]7 класс'!N2 -> 1 | M16: 50.00%
A17: 8 | B17: 8 | C17: 4 | D17: 4 | E17: 100.00% | F17: 4 | G17: 100.00% | H17: ='[12]8 класс'!L2 -> 0 | I17: 0.00% | J17: ='[12]8 класс'!M2 -> 3 | K17: 75.00% | L17: ='[12]8 класс'!N2 -> 1 | M17: 25.00%
A18: 9 | B18: 9 | C18: 6 | D18: 6 | E18: 100.00% | F18: 6 | G18: 100.00% | H18: ='[12]9 класс'!L2 -> 0 | I18: 0.00% | J18: ='[12]9 класс'!M2 -> 5 | K18: 83.33% | L18: ='[12]9 класс'!N2 -> 1 | M18: 16.67%
A19: 10 | B19: 10 | F19: 0 | H19: ='[12]10 класс'!L2 -> 0 | J19: ='[12]10 класс'!M2 -> 0 | L19: ='[12]10 класс'!N2 -> 0
A20: 11 | B20: 11 | F20: 0 | H20: ='[12]11 класс'!L2 -> 0 | J20: ='[12]11 класс'!M2 -> 0 | L20: ='[12]11 класс'!N2 -> 0
A21: Всего | C21: =SUM(C10:C20) -> 32 | D21: =SUM(D10:D20) -> 29 | E21: 90.63% | F21: =SUM(F10:F20) -> 29 | G21: 100.00% | H21: =SUM(H10:H20) -> 1 | I21: 3.45% | J21: =SUM(J10:J20) -> 24 | K21: 82.76% | L21: =SUM(L10:L20) -> 4 | M21: 13.79%

Sheet Аксар
A1: Форма мониторинга физической подготовленности обучающихся в сфере образования Российской Федерации
A2: № строки | B2: Класс | C2: Всего обучающихся в общеобразовательной организации | D2: Из них с основной группой здоровья | F2: Количество сдавших тест (от общей численности обучающихся с основной группой здоровья) | H2: Уровень физической подготовленности (количество сдавших тесты с основной группой здоровья) | N2: Проверка данных
D5: Кол-во | E5: % (от общей численности обучающихся) | F5: Кол-во | G5: % | H5: Низкий | J5: Средний | L5: Высокий
H8: Кол-во | I8: % | J8: Кол-во | K8: % | L8: Кол-во | M8: %
B9: 1 | C9: 2 | D9: 3 | E9: 4 | F9: 5 | G9: 6 | H9: 7 | I9: 8 | J9: 9 | K9: 10 | L9: 11 | M9: 12 | N9: 13
A10: 1 | B10: 1 | C10: 3 | D10: 3 | E10: =D10/C10 -> 100.00% | F10: =SUM(H10+J10+L10) -> 3 | G10: =F10/D10 -> 100.00% | H10: ='[11]1 класс'!J2 -> 3 | I10: =H10/F10 -> 100.00% | J10: ='[11]1 класс'!K2 -> 0 | K10: =J10/F10 -> 0.00% | L10: ='[11]1 класс'!L2 -> 0 | M10: =L10/F10 -> 0.00% | N10: =IF((H10+J10+L10)>D10,"ОШИБКА","") -> 
A11: 2 | B11: 2 | C11: 3 | D11: 3 | E11: =D11/C11 -> 100.00% | F11: =SUM(H11+J11+L11) -> 3 | G11: =F11/D11 -> 100.00% | H11: ='[11]2 класс'!J2 -> 3 | I11: =H11/F11 -> 100.00% | J11: ='[11]2 класс'!K2 -> 0 | K11: =J11/F11 -> 0.00% | L11: ='[11]2 класс'!L2 -> 0 | M11: =L11/F11 -> 0.00% | N11: =IF((H11+J11+L11)>D11,"ОШИБКА","") -> 
A12: 3 | B12: 3 | C12: 6 | D12: 6 | E12: 100.00% | F12: 6 | G12: 100.00% | H12: ='[11]3 класс'!J2 -> 6 | I12: 100.00% | J12: ='[11]3 класс'!K2 -> 0 | K12: 0.00% | L12: ='[11]3 класс'!L2 -> 0 | M12: 0.00%
A13: 4 | B13: 4 | C13: 6 | D13: 6 | E13: 100.00% | F13: 6 | G13: 100.00% | H13: ='[11]4 класс'!K2 -> 6 | I13: 100.00% | J13: ='[11]4 класс'!L2 -> 0 | K13: 0.00% | L13: ='[11]4 класс'!M2 -> 0 | M13: 0.00%
A14: 5 | B14: 5 | C14: 2 | D14: 2 | E14: 100.00% | F14: 2 | G14: 100.00% | H14: ='[11]5 класс'!L2 -> 2 | I14: 100.00% | J14: ='[11]5 класс'!M2 -> 0 | K14: 0.00% | L14: ='[11]5 класс'!N2 -> 0 | M14: 0.00%
A15: 6 | B15: 6 | C15: 4 | D15: 4 | E15: 100.00% | F15: 4 | G15: 100.00% | H15: ='[11]6 класс'!L2 -> 4 | I15: 100.00% | J15: ='[11]6 класс'!M2 -> 0 | K15: 0.00% | L15: ='[11]6 класс'!N2 -> 0 | M15: 0.00%
A16: 7 | B16: 7 | C16: 3 | D16: 3 | E16: 100.00% | F16: 3 | G16: 100.00% | H16: ='[11]7 класс'!L2 -> 3 | I16: 100.00% | J16: ='[11]7 класс'!M2 -> 0 | K16: 0.00% | L16: ='[11]7 класс'!N2 -> 0 | M16: 0.00%
A17: 8 | B17: 8 | C17: 8 | D17: 8 | E17: 100.00% | F17: 8 | G17: 100.00% | H17: ='[11]8 класс'!L2 -> 4 | I17: 50.00% | J17: ='[11]8 класс'!M2 -> 4 | K17: 50.00% | L17: ='[11]8 класс'!N2 -> 0 | M17: 0.00%
A18: 9 | B18: 9 | C18: 11 | D18: 11 | E18: 100.00% | F18: 11 | G18: 100.00% | H18: ='[11]9 класс'!L2 -> 7 | I18: 63.64% | J18: ='[11]9 класс'!M2 -> 4 | K18: 36.36% | L18: ='[11]9 класс'!N2 -> 0 | M18: 0.00%
A19: 10 | B19: 10 | F19: 0 | H19: ='[11]10 класс'!L2 -> 0 | J19: ='[11]10 класс'!M2 -> 0 | L19: ='[11]10 класс'!N2 -> 0
A20: 11 | B20: 11 | F20: 0 | H20: ='[11]11 класс'!L2 -> 0 | J20: ='[11]11 класс'!M2 -> 0 | L20: ='[11]11 класс'!N2 -> 0
A21: Всего | C21: =SUM(C10:C20) -> 46 | D21: =SUM(D10:D20) -> 46 | E21: 100.00% | F21: =SUM(F10:F20) -> 46 | G21: 100.00% | H21: =SUM(H10:H20) -> 38 | I21: 82.61% | J21: =SUM(J10:J20) -> 8 | K21: 17.39% | L21: =SUM(L10:L20) -> 0 | M21: 0.00%

Sheet Ал.слоб
A1: Форма мониторинга физической подготовленности обучающихся в сфере образования Российской Федерации
A2: № строки | B2: Класс | C2: Всего обучающихся в общеобразовательной организации | D2: Из них с основной группой здоровья | F2: Количество сдавших тест (от общей численности обучающихся с основной группой здоровья) | H2: Уровень физической подготовленности (количество сдавших тесты с основной группой здоровья) | N2: Проверка данных
D5: Кол-во | E5: % (от общей численности обучающихся) | F5: Кол-во | G5: % | H5: Низкий | J5: Средний | L5: Высокий
H8: Кол-во | I8: % | J8: Кол-во | K8: % | L8: Кол-во | M8: %
B9: 1 | C9: 2 | D9: 3 | E9: 4 | F9: 5 | G9: 6 | H9: 7 | I9: 8 | J9: 9 | K9: 10 | L9: 11 | M9: 12 | N9: 13
A10: 1 | B10: 1 | C10: 6 | D10: 6 | E10: =D10/C10 -> 100.00% | F10: =SUM(H10+J10+L10) -> 6 | G10: =F10/D10 -> 100.00% | H10: ='[6]1 класс'!J2 -> 0 | I10: =H10/F10 -> 0.00% | J10: ='[6]1 класс'!K2 -> 6 | K10: =J10/F10 -> 100.00% | L10: ='[6]1 класс'!L2 -> 0 | M10: =L10/F10 -> 0.00% | N10: =IF((H10+J10+L10)>D10,"ОШИБКА","") -> 
A11: 2 | B11: 2 | C11: 11 | D11: 11 | E11: =D11/C11 -> 100.00% | F11: =SUM(H11+J11+L11) -> 11 | G11: =F11/D11 -> 100.00% | H11: ='[6]2 класс'!J2 -> 1 | I11: =H11/F11 -> 9.09% | J11: ='[6]2 класс'!K2 -> 8 | K11: =J11/F11 -> 72.73% | L11: ='[6]2 класс'!L2 -> 2 | M11: =L11/F11 -> 18.18% | N11: =IF((H11+J11+L11)>D11,"ОШИБКА","") -> 
A12: 3 | B12: 3 | C12: 7 | D12: 7 | E12: 100.00% | F12: 7 | G12: 100.00% | H12: ='[6]3 класс'!J2 -> 0 | I12: 0.00% | J12: ='[6]3 класс'!K2 -> 6 | K12: 85.71% | L12: ='[6]3 класс'!L2 -> 1 | M12: 14.29%
A13: 4 | B13: 4 | C13: 6 | D13: 6 | E13: 100.00% | F13: 6 | G13: 100.00% | H13: ='[6]4 класс'!K2 -> 0 | I13: 0.00% | J13: ='[6]4 класс'!L2 -> 6 | K13: 100.00% | L13: ='[6]4 класс'!M2 -> 0 | M13: 0.00%
A14: 5 | B14: 5 | C14: 13 | D14: 13 | E14: 100.00% | F14: 13 | G14: 100.00% | H14: ='[6]5 класс'!L2 -> 0 | I14: 0.00% | J14: ='[6]5 класс'!M2 -> 9 | K14: 69.23% | L14: ='[6]5 класс'!N2 -> 4 | M14: 30.77%
A15: 6 | B15: 6 | C15: 4 | D15: 4 | E15: 100.00% | F15: 4 | G15: 100.00% | H15: ='[6]6 класс'!L2 -> 0 | I15: 0.00% | J15: ='[6]6 класс'!M2 -> 4 | K15: 100.00% | L15: ='[6]6 класс'!N2 -> 0 | M15: 0.00%
A16: 7 | B16: 7 | C16: 6 | D16: 6 | E16: 100.00% | F16: 6 | G16: 100.00% | H16: ='[6]7 класс'!L2 -> 0 | I16: 0.00% | J16: ='[6]7 класс'!M2 -> 6 | K16: 100.00% | L16: ='[6]7 класс'!N2 -> 0 | M16: 0.00%
A17: 8 | B17: 8 | C17: 8 | D17: 6 | E17: 75.00% | F17: 7 | G17: 116.67% | H17: ='[6]8 класс'!L2 -> 0 | I17: 0.00% | J17: ='[6]8 класс'!M2 -> 4 | K17: 57.14% | L17: ='[6]8 класс'!N2 -> 3 | M17: 42.86% | N17: ОШИБКА
A18: 9 | B18: 9 | C18: 5 | D18: 5 | E18: 100.00% | F18: 5 | G18: 100.00% | H18: ='[6]9 класс'!L2 -> 0 | I18: 0.00% | J18: ='[6]9 класс'!M2 -> 5 | K18: 100.00% | L18: ='[6]9 класс'!N2 -> 0 | M18: 0.00%
A19: 10 | B19: 10 | F19: 0 | H19: ='[6]10 класс'!L2 -> 0 | J19: ='[6]10 класс'!M2 -> 0 | L19: ='[6]10 класс'!N2 -> 0
A20: 11 | B20: 11 | F20: 0 | H20: ='[6]11 класс'!L2 -> 0 | J20: ='[6]11 класс'!M2 -> 0 | L20: ='[6]11 класс'!N2 -> 0
A21: Всего | C21: =SUM(C10:C20) -> 66 | D21: =SUM(D10:D20) -> 64 | E21: 96.97% | F21: =SUM(F10:F20) -> 65 | G21: 101.56% | H21: =SUM(H10:H20) -> 1 | I21: 1.54% | J21: =SUM(J10:J20) -> 54 | K21: 83.08% | L21: =SUM(L10:L20) -> 10 | M21: 15.38% | N21: ОШИБКА

Sheet Светлое
A1: Форма мониторинга физической подготовленности обучающихся в сфере образования Российской Федерации
A2: № строки | B2: Класс | C2: Всего обучающихся в общеобразовательной организации | D2: Из них с основной группой здоровья | F2: Количество сдавших тест (от общей численности обучающихся с основной группой здоровья) | H2: Уровень физической подготовленности (количество сдавших тесты с основной группой здоровья) | N2: Проверка данных
D5: Кол-во | E5: % (от общей численности обучающихся) | F5: Кол-во | G5: % | H5: Низкий | J5: Средний | L5: Высокий
H8: Кол-во | I8: % | J8: Кол-во | K8: % | L8: Кол-во | M8: %
B9: 1 | C9: 2 | D9: 3 | E9: 4 | F9: 5 | G9: 6 | H9: 7 | I9: 8 | J9: 9 | K9: 10 | L9: 11 | M9: 12 | N9: 13
A10: 1 | B10: 1 | C10: 4 | D10: 4 | E10: =D10/C10 -> 100.00% | F10: =SUM(H10+J10+L10) -> 4 | G10: =F10/D10 -> 100.00% | H10: ='[7]1 класс'!J2 -> 0 | I10: =H10/F10 -> 0.00% | J10: ='[7]1 класс'!K2 -> 3 | K10: =J10/F10 -> 75.00% | L10: ='[7]1 класс'!L2 -> 1 | M10: =L10/F10 -> 25.00% | N10: =IF((H10+J10+L10)>D10,"ОШИБКА","") -> 
A11: 2 | B11: 2 | C11: 7 | D11: 7 | E11: =D11/C11 -> 100.00% | F11: =SUM(H11+J11+L11) -> 7 | G11: =F11/D11 -> 100.00% | H11: ='[7]2 класс'!J2 -> 0 | I11: =H11/F11 -> 0.00% | J11: ='[7]2 класс'!K2 -> 5 | K11: =J11/F11 -> 71.43% | L11: ='[7]2 класс'!L2 -> 2 | M11: =L11/F11 -> 28.57% | N11: =IF((H11+J11+L11)>D11,"ОШИБКА","") -> 
A12: 3 | B12: 3 | C12: 2 | D12: 2 | E12: 100.00% | F12: 2 | G12: 100.00% | H12: ='[7]3 класс'!J2 -> 0 | I12: 0.00% | J12: ='[7]3 класс'!K2 -> 1 | K12: 50.00% | L12: ='[7]3 класс'!L2 -> 1 | M12: 50.00%
A13: 4 | B13: 4 | C13: 3 | D13: 4 | E13: 133.33% | F13: 4 | G13: 100.00% | H13: ='[7]4 класс'!K2 -> 2 | I13: 50.00% | J13: ='[7]4 класс'!L2 -> 2 | K13: 50.00% | L13: ='[7]4 класс'!M2 -> 0 | M13: 0.00%
A14: 5 | B14: 5 | C14: 5 | D14: 5 | E14: 100.00% | F14: 5 | G14: 100.00% | H14: ='[7]5 класс'!L2 -> 4 | I14: 80.00% | J14: ='[7]5 класс'!M2 -> 1 | K14: 20.00% | L14: ='[7]5 класс'!N2 -> 0 | M14: 0.00%
A15: 6 | B15: 6 | C15: 4 | D15: 3 | E15: 75.00% | F15: 3 | G15: 100.00% | H15: ='[7]6 класс'!L2 -> 2 | I15: 66.67% | J15: ='[7]6 класс'!M2 -> 1 | K15: 33.33% | L15: ='[7]6 класс'!N2 -> 0 | M15: 0.00%
A16: 7 | B16: 7 | C16: 5 | D16: 5 | E16: 100.00% | F16: 5 | G16: 100.00% | H16: ='[7]7 класс'!L2 -> 2 | I16: 40.00% | J16: ='[7]7 класс'!M2 -> 2 | K16: 40.00% | L16: ='[7]7 класс'!N2 -> 1 | M16: 20.00%
A17: 8 | B17: 8 | C17: 8 | D17: 7 | E17: 87.50% | F17: 7 | G17: 100.00% | H17: ='[7]8 класс'!L2 -> 1 | I17: 14.29% | J17: ='[7]8 класс'!M2 -> 4 | K17: 57.14% | L17: ='[7]8 класс'!N2 -> 2 | M17: 28.57%
A18: 9 | B18: 9 | C18: 8 | D18: 7 | E18: 87.50% | F18: 7 | G18: 100.00% | H18: ='[7]9 класс'!L2 -> 0 | I18: 0.00% | J18: ='[7]9 класс'!M2 -> 4 | K18: 57.14% | L18: ='[7]9 класс'!N2 -> 3 | M18: 42.86%
A19: 10 | B19: 10 | C19: 0 | D19: 0 | F19: 0 | H19: ='[7]10 класс'!L2 -> 0 | J19: ='[7]10 класс'!M2 -> 0 | L19: ='[7]10 класс'!N2 -> 0
A20: 11 | B20: 11 | C20: 0 | D20: 0 | F20: 0 | H20: ='[7]11 класс'!L2 -> 0 | J20: ='[7]11 класс'!M2 -> 0 | L20: ='[7]11 класс'!N2 -> 0
A21: Всего | C21: =SUM(C10:C20) -> 46 | D21: =SUM(D10:D20) -> 44 | E21: 95.65% | F21: =SUM(F10:F20) -> 44 | G21: 100.00% | H21: =SUM(H10:H20) -> 11 | I21: 25.00% | J21: =SUM(J10:J20) -> 23 | K21: 52.27% | L21: =SUM(L10:L20) -> 10 | M21: 22.73%

Sheet Бухарай
A1: Форма мониторинга физической подготовленности обучающихся в сфере образования Российской Федерации
A2: № строки | B2: Класс | C2: Всего обучающихся в общеобразовательной организации | D2: Из них с основной группой здоровья | F2: Количество сдавших тест (от общей численности обучающихся с основной группой здоровья) | H2: Уровень физической подготовленности (количество сдавших тесты с основной группой здоровья) | N2: Проверка данных
D5: Кол-во | E5: % (от общей численности обучающихся) | F5: Кол-во | G5: % | H5: Низкий | J5: Средний | L5: Высокий
H8: Кол-во | I8: % | J8: Кол-во | K8: % | L8: Кол-во | M8: %
B9: 1 | C9: 2 | D9: 3 | E9: 4 | F9: 5 | G9: 6 | H9: 7 | I9: 8 | J9: 9 | K9: 10 | L9: 11 | M9: 12 | N9: 13
A10: 1 | B10: 1 | C10: 3 | D10: 3 | E10: =D10/C10 -> 100.00% | F10: =SUM(H10+J10+L10) -> 3 | G10: =F10/D10 -> 100.00% | H10: ='[8]1 класс'!J2 -> 1 | I10: =H10/F10 -> 33.33% | J10: ='[8]1 класс'!K2 -> 2 | K10: =J10/F10 -> 66.67% | L10: ='[8]1 класс'!L2 -> 0 | M10: =L10/F10 -> 0.00% | N10: =IF((H10+J10+L10)>D10,"ОШИБКА","") -> 
A11: 2 | B11: 2 | C11: 9 | D11: 7 | E11: =D11/C11 -> 77.78% | F11: =SUM(H11+J11+L11) -> 7 | G11: =F11/D11 -> 100.00% | H11: ='[8]2 класс'!J2 -> 0 | I11: =H11/F11 -> 0.00% | J11: ='[8]2 класс'!K2 -> 5 | K11: =J11/F11 -> 71.43% | L11: ='[8]2 класс'!L2 -> 2 | M11: =L11/F11 -> 28.57% | N11: =IF((H11+J11+L11)>D11,"ОШИБКА","") -> 
A12: 3 | B12: 3 | C12: 6 | D12: 4 | E12: 66.67% | F12: 4 | G12: 100.00% | H12: ='[8]3 класс'!J2 -> 1 | I12: 25.00% | J12: ='[8]3 класс'!K2 -> 3 | K12: 75.00% | L12: ='[8]3 класс'!L2 -> 0 | M12: 0.00%
A13: 4 | B13: 4 | C13: 5 | D13: 5 | E13: 100.00% | F13: 5 | G13: 100.00% | H13: ='[8]4 класс'!K2 -> 1 | I13: 20.00% | J13: ='[8]4 класс'!L2 -> 3 | K13: 60.00% | L13: ='[8]4 класс'!M2 -> 1 | M13: 20.00%
A14: 5 | B14: 5 | C14: 6 | D14: 5 | E14: 83.33% | F14: 5 | G14: 100.00% | H14: ='[8]5 класс'!L2 -> 0 | I14: 0.00% | J14: ='[8]5 класс'!M2 -> 4 | K14: 80.00% | L14: ='[8]5 класс'!N2 -> 1 | M14: 20.00%
A15: 6 | B15: 6 | C15: 7 | D15: 6 | E15: 85.71% | F15: 6 | G15: 100.00% | H15: ='[8]6 класс'!L2 -> 0 | I15: 0.00% | J15: ='[8]6 класс'!M2 -> 5 | K15: 83.33% | L15: ='[8]6 класс'!N2 -> 1 | M15: 16.67%
A16: 7 | B16: 7 | C16: 6 | D16: 5 | E16: 83.33% | F16: 5 | G16: 100.00% | H16: ='[8]7 класс'!L2 -> 0 | I16: 0.00% | J16: ='[8]7 класс'!M2 -> 4 | K16: 80.00% | L16: ='[8]7 класс'!N2 -> 1 | M16: 20.00%
A17: 8 | B17: 8 | C17: 4 | D17: 4 | E17: 100.00% | F17: 4 | G17: 100.00% | H17: ='[8]8 класс'!L2 -> 0 | I17: 0.00% | J17: ='[8]8 класс'!M2 -> 3 | K17: 75.00% | L17: ='[8]8 класс'!N2 -> 1 | M17: 25.00%
A18: 9 | B18: 9 | C18: 10 | D18: 10 | E18: 100.00% | F18: 10 | G18: 100.00% | H18: ='[8]9 класс'!L2 -> 0 | I18: 0.00% | J18: ='[8]9 класс'!M2 -> 9 | K18: 90.00% | L18: ='[8]9 класс'!N2 -> 1 | M18: 10.00%
A19: 10 | B19: 10 | F19: 0 | H19: ='[8]10 класс'!L2 -> 0 | J19: ='[8]10 класс'!M2 -> 0 | L19: ='[8]10 класс'!N2 -> 0
A20: 11 | B20: 11 | F20: 0 | H20: ='[8]11 класс'!L2 -> 0 | J20: ='[8]11 класс'!M2 -> 0 | L20: ='[8]11 класс'!N2 -> 0
A21: Всего | C21: =SUM(C10:C20) -> 56 | D21: =SUM(D10:D20) -> 49 | E21: 87.50% | F21: =SUM(F10:F20) -> 49 | G21: 100.00% | H21: =SUM(H10:H20) -> 3 | I21: 6.12% | J21: =SUM(J10:J20) -> 38 | K21: 77.55% | L21: =SUM(L10:L20) -> 8 | M21: 16.33%

Sheet Сарсаз
A1: Форма мониторинга физической подготовленности обучающихся в сфере образования Российской Федерации
A2: № строки | B2: Класс | C2: Всего обучающихся в общеобразовательной организации | D2: Из них с основной группой здоровья | F2: Количество сдавших тест (от общей численности обучающихся с основной группой здоровья) | H2: Уровень физической подготовленности (количество сдавших тесты с основной группой здоровья) | N2: Проверка данных
D5: Кол-во | E5: % (от общей численности обучающихся) | F5: Кол-во | G5: % | H5: Низкий | J5: Средний | L5: Высокий
H8: Кол-во | I8: % | J8: Кол-во | K8: % | L8: Кол-во | M8: %
B9: 1 | C9: 2 | D9: 3 | E9: 4 | F9: 5 | G9: 6 | H9: 7 | I9: 8 | J9: 9 | K9: 10 | L9: 11 | M9: 12 | N9: 13
A10: 1 | B10: 1 | C10: 3 | D10: 2 | E10: =D10/C10 -> 66.67% | F10: =SUM(H10+J10+L10) -> 2 | G10: =F10/D10 -> 100.00% | H10: ='[9]1 класс'!J2 -> 0 | I10: =H10/F10 -> 0.00% | J10: ='[9]1 класс'!K2 -> 2 | K10: =J10/F10 -> 100.00% | L10: ='[9]1 класс'!L2 -> 0 | M10: =L10/F10 -> 0.00% | N10: =IF((H10+J10+L10)>D10,"ОШИБКА","") -> 
A11: 2 | B11: 2 | C11: 3 | D11: 2 | E11: =D11/C11 -> 66.67% | F11: =SUM(H11+J11+L11) -> 2 | G11: =F11/D11 -> 100.00% | H11: ='[9]2 класс'!J2 -> 1 | I11: =H11/F11 -> 50.00% | J11: ='[9]2 класс'!K2 -> 1 | K11: =J11/F11 -> 50.00% | L11: ='[9]2 класс'!L2 -> 0 | M11: =L11/F11 -> 0.00% | N11: =IF((H11+J11+L11)>D11,"ОШИБКА","") -> 
A12: 3 | B12: 3 | C12: 2 | D12: 2 | E12: 100.00% | F12: 2 | G12: 100.00% | H12: ='[9]3 класс'!J2 -> 0 | I12: 0.00% | J12: ='[9]3 класс'!K2 -> 2 | K12: 100.00% | L12: ='[9]3 класс'!L2 -> 0 | M12: 0.00%
A13: 4 | B13: 4 | C13: 1 | D13: 1 | E13: 100.00% | F13: 1 | G13: 100.00% | H13: ='[9]4 класс'!K2 -> 0 | I13: 0.00% | J13: ='[9]4 класс'!L2 -> 1 | K13: 100.00% | L13: ='[9]4 класс'!M2 -> 0 | M13: 0.00%
A14: 5 | B14: 5 | C14: 2 | D14: 2 | E14: 100.00% | F14: 2 | G14: 100.00% | H14: ='[9]5 класс'!L2 -> 0 | I14: 0.00% | J14: ='[9]5 класс'!M2 -> 2 | K14: 100.00% | L14: ='[9]5 класс'!N2 -> 0 | M14: 0.00%
A15: 6 | B15: 6 | C15: 2 | D15: 2 | E15: 100.00% | F15: 2 | G15: 100.00% | H15: ='[9]6 класс'!L2 -> 0 | I15: 0.00% | J15: ='[9]6 класс'!M2 -> 2 | K15: 100.00% | L15: ='[9]6 класс'!N2 -> 0 | M15: 0.00%
A16: 7 | B16: 7 | C16: 7 | D16: 6 | E16: 85.71% | F16: 6 | G16: 100.00% | H16: ='[9]7 класс'!L2 -> 0 | I16: 0.00% | J16: ='[9]7 класс'!M2 -> 5 | K16: 83.33% | L16: ='[9]7 класс'!N2 -> 1 | M16: 16.67%
A17: 8 | B17: 8 | C17: 3 | D17: 3 | E17: 100.00% | F17: 3 | G17: 100.00% | H17: ='[9]8 класс'!L2 -> 0 | I17: 0.00% | J17: ='[9]8 класс'!M2 -> 3 | K17: 100.00% | L17: ='[9]8 класс'!N2 -> 0 | M17: 0.00%
A18: 9 | B18: 9 | C18: 8 | D18: 6 | E18: 75.00% | F18: 6 | G18: 100.00% | H18: ='[9]9 класс'!L2 -> 1 | I18: 16.67% | J18: ='[9]9 класс'!M2 -> 4 | K18: 66.67% | L18: ='[9]9 класс'!N2 -> 1 | M18: 16.67%
A19: 10 | B19: 10 | F19: 0 | H19: ='[9]10 класс'!L2 -> 0 | J19: ='[9]10 класс'!M2 -> 0 | L19: ='[9]10 класс'!N2 -> 0
A20: 11 | B20: 11 | F20: 0 | H20: ='[9]11 класс'!L2 -> 0 | J20: ='[9]11 класс'!M2 -> 0 | L20: ='[9]11 класс'!N2 -> 0
A21: Всего | C21: =SUM(C10:C20) -> 31 | D21: =SUM(D10:D20) -> 26 | E21: 83.87% | F21: =SUM(F10:F20) -> 26 | G21: 100.00% | H21: =SUM(H10:H20) -> 2 | I21: 7.69% | J21: =SUM(J10:J20) -> 22 | K21: 84.62% | L21: =SUM(L10:L20) -> 2 | M21: 7.69%

Sheet Чубуклы
A1: Форма мониторинга физической подготовленности обучающихся в сфере образования Российской Федерации
A2: № строки | B2: Класс | C2: Всего обучающихся в общеобразовательной организации | D2: Из них с основной группой здоровья | F2: Количество сдавших тест (от общей численности обучающихся с основной группой здоровья) | H2: Уровень физической подготовленности (количество сдавших тесты с основной группой здоровья) | N2: Проверка данных
D5: Кол-во | E5: % (от общей численности обучающихся) | F5: Кол-во | G5: % | H5: Низкий | J5: Средний | L5: Высокий
H8: Кол-во | I8: % | J8: Кол-во | K8: % | L8: Кол-во | M8: %
B9: 1 | C9: 2 | D9: 3 | E9: 4 | F9: 5 | G9: 6 | H9: 7 | I9: 8 | J9: 9 | K9: 10 | L9: 11 | M9: 12 | N9: 13
A10: 1 | B10: 1 | C10: 4 | D10: 3 | E10: =D10/C10 -> 75.00% | F10: =SUM(H10+J10+L10) -> 3 | G10: =F10/D10 -> 100.00% | H10: ='[10]1 класс'!J2 -> 0 | I10: =H10/F10 -> 0.00% | J10: ='[10]1 класс'!K2 -> 3 | K10: =J10/F10 -> 100.00% | L10: ='[10]1 класс'!L2 -> 0 | M10: =L10/F10 -> 0.00% | N10: =IF((H10+J10+L10)>D10,"ОШИБКА","") -> 
A11: 2 | B11: 2 | C11: 3 | D11: 3 | E11: =D11/C11 -> 100.00% | F11: =SUM(H11+J11+L11) -> 3 | G11: =F11/D11 -> 100.00% | H11: ='[10]2 класс'!J2 -> 0 | I11: =H11/F11 -> 0.00% | J11: ='[10]2 класс'!K2 -> 3 | K11: =J11/F11 -> 100.00% | L11: ='[10]2 класс'!L2 -> 0 | M11: =L11/F11 -> 0.00% | N11: =IF((H11+J11+L11)>D11,"ОШИБКА","") -> 
A12: 3 | B12: 3 | C12: 2 | D12: 2 | E12: 100.00% | F12: 2 | G12: 100.00% | H12: ='[10]3 класс'!J2 -> 0 | I12: 0.00% | J12: ='[10]3 класс'!K2 -> 1 | K12: 50.00% | L12: ='[10]3 класс'!L2 -> 1 | M12: 50.00%
A13: 4 | B13: 4 | C13: 6 | D13: 5 | E13: 83.33% | F13: 5 | G13: 100.00% | H13: ='[10]4 класс'!K2 -> 0 | I13: 0.00% | J13: ='[10]4 класс'!L2 -> 4 | K13: 80.00% | L13: ='[10]4 класс'!M2 -> 1 | M13: 20.00%
A14: 5 | B14: 5 | C14: 2 | D14: 2 | E14: 100.00% | F14: 2 | G14: 100.00% | H14: ='[10]5 класс'!L2 -> 0 | I14: 0.00% | J14: ='[10]5 класс'!M2 -> 2 | K14: 100.00% | L14: ='[10]5 класс'!N2 -> 0 | M14: 0.00%
A15: 6 | B15: 6 | C15: 3 | D15: 2 | E15: 66.67% | F15: 2 | G15: 100.00% | H15: ='[10]6 класс'!L2 -> 0 | I15: 0.00% | J15: ='[10]6 класс'!M2 -> 2 | K15: 100.00% | L15: ='[10]6 класс'!N2 -> 0 | M15: 0.00%
A16: 7 | B16: 7 | C16: 6 | D16: 5 | E16: 83.33% | F16: 5 | G16: 100.00% | H16: ='[10]7 класс'!L2 -> 0 | I16: 0.00% | J16: ='[10]7 класс'!M2 -> 1 | K16: 20.00% | L16: ='[10]7 класс'!N2 -> 4 | M16: 80.00%
A17: 8 | B17: 8 | C17: 3 | D17: 3 | E17: 100.00% | F17: 3 | G17: 100.00% | H17: ='[10]8 класс'!L2 -> 0 | I17: 0.00% | J17: ='[10]8 класс'!M2 -> 1 | K17: 33.33% | L17: ='[10]8 класс'!N2 -> 2 | M17: 66.67%
A18: 9 | B18: 9 | C18: 5 | D18: 5 | E18: 100.00% | F18: 5 | G18: 100.00% | H18: ='[10]9 класс'!L2 -> 0 | I18: 0.00% | J18: ='[10]9 класс'!M2 -> 3 | K18: 60.00% | L18: ='[10]9 класс'!N2 -> 2 | M18: 40.00%
A19: 10 | B19: 10 | C19: 0 | D19: 0 | F19: 0 | H19: ='[10]10 класс'!L2 -> 0 | J19: ='[10]10 класс'!M2 -> 0 | L19: ='[10]10 класс'!N2 -> 0
A20: 11 | B20: 11 | C20: 0 | D20: 0 | F20: 0 | H20: ='[10]11 класс'!L2 -> 0 | J20: ='[10]11 класс'!M2 -> 0 | L20: ='[10]11 класс'!N2 -> 0
A21: Всего | C21: =SUM(C10:C20) -> 34 | D21: =SUM(D10:D20) -> 30 | E21: 88.24% | F21: =SUM(F10:F20) -> 30 | G21: 100.00% | H21: =SUM(H10:H20) -> 0 | I21: 0.00% | J21: =SUM(J10:J20) -> 20 | K21: 66.67% | L21: =SUM(L10:L20) -> 10 | M21: 33.33%

Sheet КОНЕЦ
